Department family,Entity,Date,Expense type,Expense area,Supplier,Transaction number,Amount,VAT registration number,
Department for Business Innovation and Skills,Intellectual Property Office,02/12/2014,Agency Staff,Trade Marks Directorate,Brook Street (UK) Ltd,30769471,55.37,Not applicable,
Department for Business Innovation and Skills,Intellectual Property Office,02/12/2014,Agency Staff,Trade Marks Directorate,Brook Street (UK) Ltd,30769470,56.57,Not applicable,
Department for Business Innovation and Skills,Intellectual Property Office,02/12/2014,Agency Staff,Trade Marks Directorate,Brook Street (UK) Ltd,30769474,56.76,Not applicable,
Department for Business Innovation and Skills,Intellectual Property Office,02/12/2014,Agency Staff,Patents Directorate,Brook Street (UK) Ltd,30769469,70.14,Not applicable,
Department for Business Innovation and Skills,Intellectual Property Office,02/12/2014,Agency Staff,"People, Property and Services Directorate",Brook Street (UK) Ltd,30769472,99.97,Not applicable,
Department for Business Innovation and Skills,Intellectual Property Office,02/12/2014,Agency Staff,"People, Property and Services Directorate",Brook Street (UK) Ltd,30769473,105.05,Not applicable,
Department for Business Innovation and Skills,Intellectual Property Office,24/12/2014,Agency Staff,Trade Marks Directorate,Brook Street (UK) Ltd,30797215,420.85,Not applicable,
Department for Business Innovation and Skills,Intellectual Property Office,24/12/2014,Agency Staff,Patents Directorate,Brook Street (UK) Ltd,30797215,442.08,Not applicable,
Department for Business Innovation and Skills,Intellectual Property Office,08/12/2014,Agency Staff,Trade Marks Directorate,Brook Street (UK) Ltd,30771763,469.93,Not applicable,
Department for Business Innovation and Skills,Intellectual Property Office,12/12/2014,Agency Staff,Trade Marks Directorate,Brook Street (UK) Ltd,30784390,526.04,Not applicable,
Department for Business Innovation and Skills,Intellectual Property Office,12/12/2014,Agency Staff,Patents Directorate,Brook Street (UK) Ltd,30784390,552.60,Not applicable,
Department for Business Innovation and Skills,Intellectual Property Office,08/12/2014,Agency Staff,Patents Directorate,Brook Street (UK) Ltd,30771763,552.60,Not applicable,
Department for Business Innovation and Skills,Intellectual Property Office,17/12/2014,Agency Staff,"People, Property and Services Directorate",Hays Specialist Recruitment,1004801372,606.43,Not applicable,
Department for Business Innovation and Skills,Intellectual Property Office,24/12/2014,Agency Staff,Trade Marks Directorate,Brook Street (UK) Ltd,30797215,737.49,Not applicable,
Department for Business Innovation and Skills,Intellectual Property Office,12/12/2014,Agency Staff,"People, Property and Services Directorate",Brook Street (UK) Ltd,30784390,824.14,Not applicable,
Department for Business Innovation and Skills,Intellectual Property Office,18/12/2014,Agency Staff,Copyright and IP Enforcement Directorate,Michael Page International Recruitment Ltd,5750087,843.60,Not applicable,
Department for Business Innovation and Skills,Intellectual Property Office,31/12/2014,Agency Staff,Copyright and IP Enforcement Directorate,Michael Page International Recruitment Ltd,5753820,843.60,Not applicable,
Department for Business Innovation and Skills,Intellectual Property Office,31/12/2014,Agency Staff,Copyright and IP Enforcement Directorate,Michael Page International Recruitment Ltd,5755263,885.78,Not applicable,
Department for Business Innovation and Skills,Intellectual Property Office,08/12/2014,Agency Staff,Trade Marks Directorate,Brook Street (UK) Ltd,30771763,887.19,Not applicable,
Department for Business Innovation and Skills,Intellectual Property Office,01/12/2014,Agency Staff,Copyright and IP Enforcement Directorate,Michael Page International Recruitment Ltd,5741763,906.88,Not applicable,
Department for Business Innovation and Skills,Intellectual Property Office,12/12/2014,Agency Staff,Trade Marks Directorate,Brook Street (UK) Ltd,30784390,916.39,Not applicable,
Department for Business Innovation and Skills,Intellectual Property Office,17/12/2014,Agency Staff,Copyright and IP Enforcement Directorate,Michael Page International Recruitment Ltd,5746186,927.96,Not applicable,
Department for Business Innovation and Skills,Intellectual Property Office,24/12/2014,Agency Staff,"People, Property and Services Directorate",Brook Street (UK) Ltd,30797215,964.41,Not applicable,
Department for Business Innovation and Skills,Intellectual Property Office,08/12/2014,Agency Staff,"People, Property and Services Directorate",Brook Street (UK) Ltd,30771763,999.49,Not applicable,
Department for Business Innovation and Skills,Intellectual Property Office,09/12/2014,Agency Staff,"People, Property and Services Directorate",Capita Business Services  Ltd,LO10016638,2359.30,Not applicable,
Department for Business Innovation and Skills,Intellectual Property Office,22/12/2014,Agency Staff,"People, Property and Services Directorate",Capita Business Services  Ltd,LO10020716,2910.29,Not applicable,
Department for Business Innovation and Skills,Intellectual Property Office,08/12/2014,Agency Staff,"People, Property and Services Directorate",Capita Business Services  Ltd,LO10018394,4365.44,Not applicable,
Department for Business Innovation and Skills,Intellectual Property Office,16/12/2014,Training,Finance Directorate,Personal expenses name witheld,52679,33.00,Not applicable,
Department for Business Innovation and Skills,Intellectual Property Office,31/12/2014,Training,"People, Property and Services Directorate",Teamworks,2346-14-IPO-SUP-12-14,67.50,Not applicable,
Department for Business Innovation and Skills,Intellectual Property Office,01/12/2014,Training,"People, Property and Services Directorate",Teamworks,2325-14-IPO-SUP-11-14,67.50,Not applicable,
Department for Business Innovation and Skills,Intellectual Property Office,10/12/2014,Training,Patents Directorate,Business Language Services Ltd,14276,106.50,Not applicable,
Department for Business Innovation and Skills,Intellectual Property Office,11/12/2014,Training,Trade Marks Directorate,Business Language Services Ltd,14274,127.50,Not applicable,
Department for Business Innovation and Skills,Intellectual Property Office,19/12/2014,Training,Patents Directorate,Coleg Gwent,INV162683,130.00,Not applicable,
Department for Business Innovation and Skills,Intellectual Property Office,18/12/2014,Training,"People, Property and Services Directorate",Quadrilect Ltd,27440,150.00,Not applicable,
Department for Business Innovation and Skills,Intellectual Property Office,31/12/2014,Training,"People, Property and Services Directorate",British Red Cross,N908498,260.00,Not applicable,
Department for Business Innovation and Skills,Intellectual Property Office,05/12/2014,Training,Business Support Directorate,GovNet Communications,75366,355.00,Not applicable,
Department for Business Innovation and Skills,Intellectual Property Office,04/12/2014,Training,Innovation Directorate,Whitehall & Industry Group,2140787,450.00,Not applicable,
Department for Business Innovation and Skills,Intellectual Property Office,17/12/2014,Training,"People, Property and Services Directorate",GovNet Communications,76425,495.00,Not applicable,
Department for Business Innovation and Skills,Intellectual Property Office,03/12/2014,Training,Patents Directorate,Capita Business Services  Ltd,X51176,637.00,Not applicable,
Department for Business Innovation and Skills,Intellectual Property Office,01/12/2014,Training,"People, Property and Services Directorate",Whitehall & Industry Group,2140720,650.00,Not applicable,
Department for Business Innovation and Skills,Intellectual Property Office,01/12/2014,Training,Innovation Directorate,Whitehall & Industry Group,2140716,650.00,Not applicable,
Department for Business Innovation and Skills,Intellectual Property Office,02/12/2014,Training,Trade Marks Directorate,MTC Training,MTCCateringChatelherault,674.60,Not applicable,
Department for Business Innovation and Skills,Intellectual Property Office,31/12/2014,Training,Innovation Directorate,GovNet Communications,77528,740.00,Not applicable,
Department for Business Innovation and Skills,Intellectual Property Office,18/12/2014,Training,"People, Property and Services Directorate",Quadrilect Ltd,27446,835.00,Not applicable,
Department for Business Innovation and Skills,Intellectual Property Office,18/12/2014,Training,"People, Property and Services Directorate",Quadrilect Ltd,27442,835.00,Not applicable,
Department for Business Innovation and Skills,Intellectual Property Office,18/12/2014,Training,"People, Property and Services Directorate",Quadrilect Ltd,27445,835.00,Not applicable,
Department for Business Innovation and Skills,Intellectual Property Office,18/12/2014,Training,"People, Property and Services Directorate",Quadrilect Ltd,27443,835.00,Not applicable,
Department for Business Innovation and Skills,Intellectual Property Office,18/12/2014,Training,"People, Property and Services Directorate",Quadrilect Ltd,27444,835.00,Not applicable,
Department for Business Innovation and Skills,Intellectual Property Office,16/12/2014,Training,IMPROVE Project,Certitec Ltd,10135,898.00,Not applicable,
Department for Business Innovation and Skills,Intellectual Property Office,02/12/2014,Training,Trade Marks Directorate,MTC Training,MTCCateringBirchwood,1460.50,Not applicable,
Department for Business Innovation and Skills,Intellectual Property Office,02/12/2014,Training,International Policy Directorate,Open University,393725,1600.00,Not applicable,
Department for Business Innovation and Skills,Intellectual Property Office,01/12/2014,Training,"People, Property and Services Directorate",JB International Training Ltd,14150161,1695.00,Not applicable,
Department for Business Innovation and Skills,Intellectual Property Office,23/12/2014,Training,Business Support Directorate,Global Knowledge UK,260065,1800.00,Not applicable,
Department for Business Innovation and Skills,Intellectual Property Office,03/12/2014,Training,Business Support Directorate,Global Knowledge UK,258675,4990.00,Not applicable,
Department for Business Innovation and Skills,Intellectual Property Office,08/12/2014,Training,"People, Property and Services Directorate",LRQA Limited,14005069,6309.79,Not applicable,
Department for Business Innovation and Skills,Intellectual Property Office,11/12/2014,Training,Patents Directorate,University of Bath,52498,17500.00,Not applicable,
Department for Business Innovation and Skills,Intellectual Property Office,18/12/2014,Training,"People, Property and Services Directorate",Capita Business Services  Ltd,X49220,799.20,Not applicable,
Department for Business Innovation and Skills,Intellectual Property Office,18/12/2014,Training,"People, Property and Services Directorate",Capita Business Services  Ltd,X49219,1294.00,Not applicable,
Department for Business Innovation and Skills,Intellectual Property Office,05/12/2014,Training,"People, Property and Services Directorate",Capita Business Services  Ltd,X51818,1294.00,Not applicable,
Department for Business Innovation and Skills,Intellectual Property Office,18/12/2014,Training,"People, Property and Services Directorate",Capita Business Services  Ltd,X49217,1294.00,Not applicable,
Department for Business Innovation and Skills,Intellectual Property Office,12/12/2014,Training,"People, Property and Services Directorate",ChangeQuest Ltd,484,1590.00,Not applicable,
Department for Business Innovation and Skills,Intellectual Property Office,18/12/2014,Training,"People, Property and Services Directorate",Capita Business Services  Ltd,X51175,2510.00,Not applicable,
Department for Business Innovation and Skills,Intellectual Property Office,18/12/2014,Training,"People, Property and Services Directorate",Capita Business Services  Ltd,X49222,2919.00,Not applicable,
Department for Business Innovation and Skills,Intellectual Property Office,31/12/2014,Training,"People, Property and Services Directorate",Welsh Assembly Government,1800054392,3166.67,Not applicable,
Department for Business Innovation and Skills,Intellectual Property Office,08/12/2014,Subscription to Professional bodies,"People, Property and Services Directorate",Personal expenses name witheld,52642,54.00,Not applicable,
Department for Business Innovation and Skills,Intellectual Property Office,08/12/2014,Subscription to Professional bodies,"People, Property and Services Directorate",Personal expenses name witheld,52643,119.00,Not applicable,
Department for Business Innovation and Skills,Intellectual Property Office,16/12/2014,Subscription to Professional bodies,"People, Property and Services Directorate",Personal expenses name witheld,52675,128.00,Not applicable,
Department for Business Innovation and Skills,Intellectual Property Office,02/12/2014,Subscription to Professional bodies,"People, Property and Services Directorate",Personal expenses name witheld,52632,144.00,Not applicable,
Department for Business Innovation and Skills,Intellectual Property Office,23/12/2014,Subscription to Professional bodies,"People, Property and Services Directorate",Personal expenses name witheld,52694,195.00,Not applicable,
Department for Business Innovation and Skills,Intellectual Property Office,23/12/2014,Subscription to Professional bodies,"People, Property and Services Directorate",Personal expenses name witheld,52695,211.00,Not applicable,
Department for Business Innovation and Skills,Intellectual Property Office,12/12/2014,Subscription to Professional bodies,"People, Property and Services Directorate",British Computer Society,1380203,234.00,Not applicable,
Department for Business Innovation and Skills,Intellectual Property Office,02/12/2014,Subscription to Professional bodies,"People, Property and Services Directorate",Personal expenses name witheld,52631,259.00,Not applicable,
Department for Business Innovation and Skills,Intellectual Property Office,16/12/2014,Subscription to Professional bodies,"People, Property and Services Directorate",Personal expenses name witheld,52676,340.00,Not applicable,
Department for Business Innovation and Skills,Intellectual Property Office,19/12/2014,Childcare costs,"People, Property and Services Directorate",P&MM Ltd Re Childcare Plus,502607,240.43,Not applicable,
Department for Business Innovation and Skills,Intellectual Property Office,19/12/2014,Childcare costs,"People, Property and Services Directorate",P&MM Ltd Re Childcare Plus,502603,6331.57,Not applicable,
Department for Business Innovation and Skills,Intellectual Property Office,19/12/2014,Childcare costs,"People, Property and Services Directorate",P&MM Ltd Re Childcare Plus,1018703,7354.97,Not applicable,
Department for Business Innovation and Skills,Intellectual Property Office,09/12/2014,Relocation Removals & Excess Fare,"People, Property and Services Directorate",Personal expenses name witheld,52650,24.20,Not applicable,
Department for Business Innovation and Skills,Intellectual Property Office,05/12/2014,Relocation Removals & Excess Fare,"People, Property and Services Directorate",Personal expenses name witheld,52637,591.70,Not applicable,
Department for Business Innovation and Skills,Intellectual Property Office,30/12/2014,Relocation Removals & Excess Fare,"People, Property and Services Directorate",Somerset Bencoolen,25467,3482.85,Not applicable,
Department for Business Innovation and Skills,Intellectual Property Office,05/12/2014,Staff Suggestion Scheme,"People, Property and Services Directorate",Personal expenses name witheld,52640,100.00,Not applicable,
Department for Business Innovation and Skills,Intellectual Property Office,19/12/2014,Recruitment Advertising,Patents Directorate,J Revill,52684,145.80,Not applicable,
Department for Business Innovation and Skills,Intellectual Property Office,11/12/2014,Recruitment Advertising,Patents Directorate,Cardiff University,1119839,366.00,Not applicable,
Department for Business Innovation and Skills,Intellectual Property Office,15/12/2014,Recruitment Advertising,Patents Directorate,Imperial College,20130223,390.00,Not applicable,
Department for Business Innovation and Skills,Intellectual Property Office,16/12/2014,Recruitment Advertising,Patents Directorate,University Of London,9015646,392.40,Not applicable,
Department for Business Innovation and Skills,Intellectual Property Office,15/12/2014,Recruitment Advertising,Patents Directorate,University of Edinburgh,SO113589,492.00,Not applicable,
Department for Business Innovation and Skills,Intellectual Property Office,12/12/2014,Recruitment Advertising,Patents Directorate,Durham University,274994,600.00,Not applicable,
Department for Business Innovation and Skills,Intellectual Property Office,11/12/2014,Recruitment Advertising,Patents Directorate,University of Birmingham,200-0117393,642.00,Not applicable,
Department for Business Innovation and Skills,Intellectual Property Office,09/12/2014,Recruitment Advertising,Patents Directorate,Papakostas Ioannis,52644,642.23,Not applicable,
Department for Business Innovation and Skills,Intellectual Property Office,09/12/2014,Recruitment Advertising,"People, Property and Services Directorate",Economist Newspaper Ltd,ON11426,1200.00,Not applicable,
Department for Business Innovation and Skills,Intellectual Property Office,05/12/2014,Recruitment Advertising,Patents Directorate,News UK & Ireland Ltd,8500137957,1276.80,Not applicable,
Department for Business Innovation and Skills,Intellectual Property Office,12/12/2014,Recruitment Advertising,Patents Directorate,IOP Publishing Ltd,8024811,1620.00,Not applicable,
Department for Business Innovation and Skills,Intellectual Property Office,10/12/2014,Recruitment Advertising,Patents Directorate,Totaljobs Group Ltd,80552725,1794.00,Not applicable,
Department for Business Innovation and Skills,Intellectual Property Office,04/12/2014,Recruitment Advertising,Patents Directorate,Gradcracker,IPO-1440-4,2400.00,Not applicable,
Department for Business Innovation and Skills,Intellectual Property Office,15/12/2014,Recruitment Advertising,"People, Property and Services Directorate",Acorn Recruitment Ltd,APS02636,3001.98,Not applicable,
Department for Business Innovation and Skills,Intellectual Property Office,29/12/2014,Travel and subsistence UK,Trade Marks Directorate,HRG UK,426401175,-212.40,Not applicable,
Department for Business Innovation and Skills,Intellectual Property Office,29/12/2014,Travel and subsistence UK,Finance Directorate,HRG UK,426268424,-200.65,Not applicable,
Department for Business Innovation and Skills,Intellectual Property Office,29/12/2014,Travel and subsistence UK,"People, Property and Services Directorate",HRG UK,426401144,-194.78,Not applicable,
Department for Business Innovation and Skills,Intellectual Property Office,29/12/2014,Travel and subsistence UK,Innovation Directorate,HRG UK,426401143,-185.00,Not applicable,
Department for Business Innovation and Skills,Intellectual Property Office,29/12/2014,Travel and subsistence UK,Copyright and IP Enforcement Directorate,HRG UK,426337889,-185.00,Not applicable,
Department for Business Innovation and Skills,Intellectual Property Office,29/12/2014,Travel and subsistence UK,Patents Directorate,HRG UK,426401174,-121.67,Not applicable,
Department for Business Innovation and Skills,Intellectual Property Office,29/12/2014,Travel and subsistence UK,Innovation Directorate,HRG UK,426471273,-88.65,Not applicable,
Department for Business Innovation and Skills,Intellectual Property Office,29/12/2014,Travel and subsistence UK,International Policy Directorate,HRG UK,426471353,-76.09,Not applicable,
Department for Business Innovation and Skills,Intellectual Property Office,29/12/2014,Travel and subsistence UK,International Policy Directorate,HRG UK,426471294,-68.60,Not applicable,
Department for Business Innovation and Skills,Intellectual Property Office,29/12/2014,Travel and subsistence UK,Patents Directorate,HRG UK,426508727,-58.33,Not applicable,
Department for Business Innovation and Skills,Intellectual Property Office,29/12/2014,Travel and subsistence UK,Copyright and IP Enforcement Directorate,HRG UK,426471363,-56.53,Not applicable,
Department for Business Innovation and Skills,Intellectual Property Office,29/12/2014,Travel and subsistence UK,Innovation Directorate,HRG UK,426401112,-38.28,Not applicable,
Department for Business Innovation and Skills,Intellectual Property Office,29/12/2014,Travel and subsistence UK,Copyright and IP Enforcement Directorate,HRG UK,426471281,-28.04,Not applicable,
Department for Business Innovation and Skills,Intellectual Property Office,29/12/2014,Travel and subsistence UK,International Policy Directorate,HRG UK,426471351,-25.72,Not applicable,
Department for Business Innovation and Skills,Intellectual Property Office,29/12/2014,Travel and subsistence UK,Copyright and IP Enforcement Directorate,HRG UK,426283982,-14.46,Not applicable,
Department for Business Innovation and Skills,Intellectual Property Office,29/12/2014,Travel and subsistence UK,Copyright and IP Enforcement Directorate,HRG UK,426268315,-10.88,Not applicable,
Department for Business Innovation and Skills,Intellectual Property Office,29/12/2014,Travel and subsistence UK,Finance Directorate,HRG UK,426479915,-9.72,Not applicable,
Department for Business Innovation and Skills,Intellectual Property Office,29/12/2014,Travel and subsistence UK,Patents Directorate,HRG UK,426347148,-9.72,Not applicable,
Department for Business Innovation and Skills,Intellectual Property Office,29/12/2014,Travel and subsistence UK,Innovation Directorate,HRG UK,426436223,2.57,Not applicable,
Department for Business Innovation and Skills,Intellectual Property Office,29/12/2014,Travel and subsistence UK,Innovation Directorate,HRG UK,426377496,2.57,Not applicable,
Department for Business Innovation and Skills,Intellectual Property Office,29/12/2014,Travel and subsistence UK,International Policy Directorate,HRG UK,426436950,2.57,Not applicable,
Department for Business Innovation and Skills,Intellectual Property Office,29/12/2014,Travel and subsistence UK,International Policy Directorate,HRG UK,426436947,2.57,Not applicable,
Department for Business Innovation and Skills,Intellectual Property Office,29/12/2014,Travel and subsistence UK,International Policy Directorate,HRG UK,426307548,2.57,Not applicable,
Department for Business Innovation and Skills,Intellectual Property Office,29/12/2014,Travel and subsistence UK,International Policy Directorate,HRG UK,426343544,2.57,Not applicable,
Department for Business Innovation and Skills,Intellectual Property Office,29/12/2014,Travel and subsistence UK,Copyright and IP Enforcement Directorate,HRG UK,426262559,2.57,Not applicable,
Department for Business Innovation and Skills,Intellectual Property Office,29/12/2014,Travel and subsistence UK,Copyright and IP Enforcement Directorate,HRG UK,426307679,2.57,Not applicable,
Department for Business Innovation and Skills,Intellectual Property Office,29/12/2014,Travel and subsistence UK,Copyright and IP Enforcement Directorate,HRG UK,426436082,2.57,Not applicable,
Department for Business Innovation and Skills,Intellectual Property Office,29/12/2014,Travel and subsistence UK,Innovation Directorate,HRG UK,426344491,2.57,Not applicable,
Department for Business Innovation and Skills,Intellectual Property Office,29/12/2014,Travel and subsistence UK,International Policy Directorate,HRG UK,426377360,2.57,Not applicable,
Department for Business Innovation and Skills,Intellectual Property Office,29/12/2014,Travel and subsistence UK,Innovation Directorate,HRG UK,426461879,2.57,Not applicable,
Department for Business Innovation and Skills,Intellectual Property Office,29/12/2014,Travel and subsistence UK,Innovation Directorate,HRG UK,426376799,2.57,Not applicable,
Department for Business Innovation and Skills,Intellectual Property Office,29/12/2014,Travel and subsistence UK,International Policy Directorate,HRG UK,426436921,2.57,Not applicable,
Department for Business Innovation and Skills,Intellectual Property Office,29/12/2014,Travel and subsistence UK,International Policy Directorate,HRG UK,426307547,2.57,Not applicable,
Department for Business Innovation and Skills,Intellectual Property Office,29/12/2014,Travel and subsistence UK,Copyright and IP Enforcement Directorate,HRG UK,426294409,2.57,Not applicable,
Department for Business Innovation and Skills,Intellectual Property Office,29/12/2014,Travel and subsistence UK,Innovation Directorate,HRG UK,426307606,2.57,Not applicable,
Department for Business Innovation and Skills,Intellectual Property Office,29/12/2014,Travel and subsistence UK,Innovation Directorate,HRG UK,426436113,2.57,Not applicable,
Department for Business Innovation and Skills,Intellectual Property Office,29/12/2014,Travel and subsistence UK,Copyright and IP Enforcement Directorate,HRG UK,426395314,2.57,Not applicable,
Department for Business Innovation and Skills,Intellectual Property Office,29/12/2014,Travel and subsistence UK,Innovation Directorate,HRG UK,426275414,2.57,Not applicable,
Department for Business Innovation and Skills,Intellectual Property Office,29/12/2014,Travel and subsistence UK,Innovation Directorate,HRG UK,426343851,2.57,Not applicable,
Department for Business Innovation and Skills,Intellectual Property Office,29/12/2014,Travel and subsistence UK,Innovation Directorate,HRG UK,426276548,2.57,Not applicable,
Department for Business Innovation and Skills,Intellectual Property Office,29/12/2014,Travel and subsistence UK,Copyright and IP Enforcement Directorate,HRG UK,426294443,2.57,Not applicable,
Department for Business Innovation and Skills,Intellectual Property Office,29/12/2014,Travel and subsistence UK,Innovation Directorate,HRG UK,426514087,2.57,Not applicable,
Department for Business Innovation and Skills,Intellectual Property Office,29/12/2014,Travel and subsistence UK,International Policy Directorate,HRG UK,426589824,2.57,Not applicable,
Department for Business Innovation and Skills,Intellectual Property Office,29/12/2014,Travel and subsistence UK,International Policy Directorate,HRG UK,426435693,2.57,Not applicable,
Department for Business Innovation and Skills,Intellectual Property Office,29/12/2014,Travel and subsistence UK,Innovation Directorate,HRG UK,426276552,2.57,Not applicable,
Department for Business Innovation and Skills,Intellectual Property Office,29/12/2014,Travel and subsistence UK,Innovation Directorate,HRG UK,426276569,2.57,Not applicable,
Department for Business Innovation and Skills,Intellectual Property Office,29/12/2014,Travel and subsistence UK,Innovation Directorate,HRG UK,426363182,2.57,Not applicable,
Department for Business Innovation and Skills,Intellectual Property Office,29/12/2014,Travel and subsistence UK,Innovation Directorate,HRG UK,426478046,2.57,Not applicable,
Department for Business Innovation and Skills,Intellectual Property Office,29/12/2014,Travel and subsistence UK,Innovation Directorate,HRG UK,426462431,2.57,Not applicable,
Department for Business Innovation and Skills,Intellectual Property Office,29/12/2014,Travel and subsistence UK,International Policy Directorate,HRG UK,426436918,2.57,Not applicable,
Department for Business Innovation and Skills,Intellectual Property Office,29/12/2014,Travel and subsistence UK,International Policy Directorate,HRG UK,426307546,2.57,Not applicable,
Department for Business Innovation and Skills,Intellectual Property Office,29/12/2014,Travel and subsistence UK,Copyright and IP Enforcement Directorate,HRG UK,426343417,2.57,Not applicable,
Department for Business Innovation and Skills,Intellectual Property Office,29/12/2014,Travel and subsistence UK,Copyright and IP Enforcement Directorate,HRG UK,426462942,2.57,Not applicable,
Department for Business Innovation and Skills,Intellectual Property Office,29/12/2014,Travel and subsistence UK,"People, Property and Services Directorate",HRG UK,426362255,2.57,Not applicable,
Department for Business Innovation and Skills,Intellectual Property Office,29/12/2014,Travel and subsistence UK,"People, Property and Services Directorate",HRG UK,426343839,2.57,Not applicable,
Department for Business Innovation and Skills,Intellectual Property Office,29/12/2014,Travel and subsistence UK,Business Support Directorate,HRG UK,426498901,2.57,Not applicable,
Department for Business Innovation and Skills,Intellectual Property Office,29/12/2014,Travel and subsistence UK,Innovation Directorate,HRG UK,426293529,2.57,Not applicable,
Department for Business Innovation and Skills,Intellectual Property Office,29/12/2014,Travel and subsistence UK,Innovation Directorate,HRG UK,426543394,2.57,Not applicable,
Department for Business Innovation and Skills,Intellectual Property Office,29/12/2014,Travel and subsistence UK,Innovation Directorate,HRG UK,426377469,2.57,Not applicable,
Department for Business Innovation and Skills,Intellectual Property Office,29/12/2014,Travel and subsistence UK,International Policy Directorate,HRG UK,426362601,2.57,Not applicable,
Department for Business Innovation and Skills,Intellectual Property Office,29/12/2014,Travel and subsistence UK,International Policy Directorate,HRG UK,426294390,2.57,Not applicable,
Department for Business Innovation and Skills,Intellectual Property Office,29/12/2014,Travel and subsistence UK,International Policy Directorate,HRG UK,426435525,2.57,Not applicable,
Department for Business Innovation and Skills,Intellectual Property Office,29/12/2014,Travel and subsistence UK,International Policy Directorate,HRG UK,426514210,2.57,Not applicable,
Department for Business Innovation and Skills,Intellectual Property Office,29/12/2014,Travel and subsistence UK,Trade Marks Directorate,HRG UK,426448193,2.57,Not applicable,
Department for Business Innovation and Skills,Intellectual Property Office,29/12/2014,Travel and subsistence UK,Innovation Directorate,HRG UK,426462927,2.57,Not applicable,
Department for Business Innovation and Skills,Intellectual Property Office,29/12/2014,Travel and subsistence UK,Innovation Directorate,HRG UK,426514112,2.57,Not applicable,
Department for Business Innovation and Skills,Intellectual Property Office,29/12/2014,Travel and subsistence UK,Innovation Directorate,HRG UK,426514115,2.57,Not applicable,
Department for Business Innovation and Skills,Intellectual Property Office,29/12/2014,Travel and subsistence UK,Business Support Directorate,HRG UK,426329070,2.57,Not applicable,
Department for Business Innovation and Skills,Intellectual Property Office,29/12/2014,Travel and subsistence UK,International Policy Directorate,HRG UK,426436927,2.57,Not applicable,
Department for Business Innovation and Skills,Intellectual Property Office,29/12/2014,Travel and subsistence UK,International Policy Directorate,HRG UK,426543508,2.57,Not applicable,
Department for Business Innovation and Skills,Intellectual Property Office,29/12/2014,Travel and subsistence UK,International Policy Directorate,HRG UK,426436948,2.57,Not applicable,
Department for Business Innovation and Skills,Intellectual Property Office,29/12/2014,Travel and subsistence UK,International Policy Directorate,HRG UK,426377447,2.57,Not applicable,
Department for Business Innovation and Skills,Intellectual Property Office,29/12/2014,Travel and subsistence UK,Copyright and IP Enforcement Directorate,HRG UK,426478816,2.57,Not applicable,
Department for Business Innovation and Skills,Intellectual Property Office,29/12/2014,Travel and subsistence UK,Innovation Directorate,HRG UK,426276579,2.57,Not applicable,
Department for Business Innovation and Skills,Intellectual Property Office,29/12/2014,Travel and subsistence UK,Innovation Directorate,HRG UK,426543088,2.57,Not applicable,
Department for Business Innovation and Skills,Intellectual Property Office,29/12/2014,Travel and subsistence UK,Business Support Directorate,HRG UK,426329140,2.57,Not applicable,
Department for Business Innovation and Skills,Intellectual Property Office,29/12/2014,Travel and subsistence UK,Copyright and IP Enforcement Directorate,HRG UK,426395868,2.57,Not applicable,
Department for Business Innovation and Skills,Intellectual Property Office,29/12/2014,Travel and subsistence UK,International Policy Directorate,HRG UK,426436933,2.57,Not applicable,
Department for Business Innovation and Skills,Intellectual Property Office,29/12/2014,Travel and subsistence UK,International Policy Directorate,HRG UK,426436931,2.57,Not applicable,
Department for Business Innovation and Skills,Intellectual Property Office,29/12/2014,Travel and subsistence UK,International Policy Directorate,HRG UK,426262272,2.57,Not applicable,
Department for Business Innovation and Skills,Intellectual Property Office,29/12/2014,Travel and subsistence UK,International Policy Directorate,HRG UK,426262277,2.57,Not applicable,
Department for Business Innovation and Skills,Intellectual Property Office,29/12/2014,Travel and subsistence UK,Copyright and IP Enforcement Directorate,HRG UK,426293885,2.57,Not applicable,
Department for Business Innovation and Skills,Intellectual Property Office,29/12/2014,Travel and subsistence UK,Innovation Directorate,HRG UK,426377374,2.57,Not applicable,
Department for Business Innovation and Skills,Intellectual Property Office,29/12/2014,Travel and subsistence UK,International Policy Directorate,HRG UK,426436949,2.57,Not applicable,
Department for Business Innovation and Skills,Intellectual Property Office,29/12/2014,Travel and subsistence UK,International Policy Directorate,HRG UK,426543424,2.57,Not applicable,
Department for Business Innovation and Skills,Intellectual Property Office,29/12/2014,Travel and subsistence UK,International Policy Directorate,HRG UK,426436946,2.57,Not applicable,
Department for Business Innovation and Skills,Intellectual Property Office,29/12/2014,Travel and subsistence UK,International Policy Directorate,HRG UK,426436924,2.57,Not applicable,
Department for Business Innovation and Skills,Intellectual Property Office,29/12/2014,Travel and subsistence UK,Innovation Directorate,HRG UK,426275476,2.57,Not applicable,
Department for Business Innovation and Skills,Intellectual Property Office,29/12/2014,Travel and subsistence UK,Innovation Directorate,HRG UK,426276536,2.57,Not applicable,
Department for Business Innovation and Skills,Intellectual Property Office,29/12/2014,Travel and subsistence UK,Copyright and IP Enforcement Directorate,HRG UK,426573056,2.57,Not applicable,
Department for Business Innovation and Skills,Intellectual Property Office,29/12/2014,Travel and subsistence UK,Innovation Directorate,HRG UK,426275379,2.57,Not applicable,
Department for Business Innovation and Skills,Intellectual Property Office,29/12/2014,Travel and subsistence UK,Innovation Directorate,HRG UK,426276567,2.57,Not applicable,
Department for Business Innovation and Skills,Intellectual Property Office,29/12/2014,Travel and subsistence UK,International Policy Directorate,HRG UK,426361920,4.11,Not applicable,
Department for Business Innovation and Skills,Intellectual Property Office,29/12/2014,Travel and subsistence UK,International Policy Directorate,HRG UK,426361919,4.11,Not applicable,
Department for Business Innovation and Skills,Intellectual Property Office,29/12/2014,Travel and subsistence UK,International Policy Directorate,HRG UK,426361921,4.11,Not applicable,
Department for Business Innovation and Skills,Intellectual Property Office,29/12/2014,Travel and subsistence UK,Innovation Directorate,HRG UK,426589298,4.11,Not applicable,
Department for Business Innovation and Skills,Intellectual Property Office,29/12/2014,Travel and subsistence UK,Innovation Directorate,HRG UK,426555421,4.11,Not applicable,
Department for Business Innovation and Skills,Intellectual Property Office,29/12/2014,Travel and subsistence UK,Copyright and IP Enforcement Directorate,HRG UK,426462943,4.11,Not applicable,
Department for Business Innovation and Skills,Intellectual Property Office,22/12/2014,Travel and subsistence UK,Patents Directorate,Personal expenses name witheld,ER128176,4.25,Not applicable,
Department for Business Innovation and Skills,Intellectual Property Office,08/12/2014,Travel and subsistence UK,Copyright and IP Enforcement Directorate,Personal expenses name witheld,ER127300,4.25,Not applicable,
Department for Business Innovation and Skills,Intellectual Property Office,18/12/2014,Travel and subsistence UK,International Policy Directorate,Personal expenses name witheld,ER128005,4.40,Not applicable,
Department for Business Innovation and Skills,Intellectual Property Office,19/12/2014,Travel and subsistence UK,Copyright and IP Enforcement Directorate,Personal expenses name witheld,ER128182,4.40,Not applicable,
Department for Business Innovation and Skills,Intellectual Property Office,24/12/2014,Travel and subsistence UK,Innovation Directorate,Personal expenses name witheld,ER128241,4.40,Not applicable,
Department for Business Innovation and Skills,Intellectual Property Office,17/12/2014,Travel and subsistence UK,Innovation Directorate,Personal expenses name witheld,ER128073,4.50,Not applicable,
Department for Business Innovation and Skills,Intellectual Property Office,17/12/2014,Travel and subsistence UK,Innovation Directorate,Personal expenses name witheld,ER128072,4.50,Not applicable,
Department for Business Innovation and Skills,Intellectual Property Office,29/12/2014,Travel and subsistence UK,Business Support Directorate,HRG UK,426345749,4.78,Not applicable,
Department for Business Innovation and Skills,Intellectual Property Office,08/12/2014,Travel and subsistence UK,Innovation Directorate,Personal expenses name witheld,ER127625,4.98,Not applicable,
Department for Business Innovation and Skills,Intellectual Property Office,29/12/2014,Travel and subsistence UK,Copyright and IP Enforcement Directorate,HRG UK,426463020,5.14,Not applicable,
Department for Business Innovation and Skills,Intellectual Property Office,29/12/2014,Travel and subsistence UK,Innovation Directorate,HRG UK,426343441,5.14,Not applicable,
Department for Business Innovation and Skills,Intellectual Property Office,29/12/2014,Travel and subsistence UK,International Policy Directorate,HRG UK,426589952,5.14,Not applicable,
Department for Business Innovation and Skills,Intellectual Property Office,29/12/2014,Travel and subsistence UK,Innovation Directorate,HRG UK,426377336,5.14,Not applicable,
Department for Business Innovation and Skills,Intellectual Property Office,29/12/2014,Travel and subsistence UK,Copyright and IP Enforcement Directorate,HRG UK,426262618,5.14,Not applicable,
Department for Business Innovation and Skills,Intellectual Property Office,29/12/2014,Travel and subsistence UK,"People, Property and Services Directorate",HRG UK,426261570,5.14,Not applicable,
Department for Business Innovation and Skills,Intellectual Property Office,29/12/2014,Travel and subsistence UK,International Policy Directorate,HRG UK,426514810,5.14,Not applicable,
Department for Business Innovation and Skills,Intellectual Property Office,29/12/2014,Travel and subsistence UK,Innovation Directorate,HRG UK,426328457,5.65,Not applicable,
Department for Business Innovation and Skills,Intellectual Property Office,29/12/2014,Travel and subsistence UK,Innovation Directorate,HRG UK,426328458,5.65,Not applicable,
Department for Business Innovation and Skills,Intellectual Property Office,29/12/2014,Travel and subsistence UK,"People, Property and Services Directorate",HRG UK,426556356,5.65,Not applicable,
Department for Business Innovation and Skills,Intellectual Property Office,29/12/2014,Travel and subsistence UK,Innovation Directorate,HRG UK,426344061,5.65,Not applicable,
Department for Business Innovation and Skills,Intellectual Property Office,29/12/2014,Travel and subsistence UK,"People, Property and Services Directorate",HRG UK,426271523,7.07,Not applicable,
Department for Business Innovation and Skills,Intellectual Property Office,16/12/2014,Travel and subsistence UK,Copyright and IP Enforcement Directorate,Personal expenses name witheld,ER128059,7.30,Not applicable,
Department for Business Innovation and Skills,Intellectual Property Office,16/12/2014,Travel and subsistence UK,Trade Marks Directorate,Personal expenses name witheld,ER128068,7.70,Not applicable,
Department for Business Innovation and Skills,Intellectual Property Office,15/12/2014,Travel and subsistence UK,Patents Directorate,Personal expenses name witheld,ER127990,7.70,Not applicable,
Department for Business Innovation and Skills,Intellectual Property Office,03/12/2014,Travel and subsistence UK,Finance Directorate,Veezu Ltd T/A Dragon Taxis (Newport),2797,7.80,Not applicable,
Department for Business Innovation and Skills,Intellectual Property Office,03/12/2014,Travel and subsistence UK,Innovation Directorate,Veezu Ltd T/A Dragon Taxis (Newport),2797,7.80,Not applicable,
Department for Business Innovation and Skills,Intellectual Property Office,03/12/2014,Travel and subsistence UK,Finance Directorate,Veezu Ltd T/A Dragon Taxis (Newport),2797,7.80,Not applicable,
Department for Business Innovation and Skills,Intellectual Property Office,03/12/2014,Travel and subsistence UK,Business Support Directorate,Veezu Ltd T/A Dragon Taxis (Newport),2797,7.80,Not applicable,
Department for Business Innovation and Skills,Intellectual Property Office,03/12/2014,Travel and subsistence UK,Trade Marks Directorate,Veezu Ltd T/A Dragon Taxis (Newport),2797,7.80,Not applicable,
Department for Business Innovation and Skills,Intellectual Property Office,03/12/2014,Travel and subsistence UK,Patents Directorate,Veezu Ltd T/A Dragon Taxis (Newport),2797,7.80,Not applicable,
Department for Business Innovation and Skills,Intellectual Property Office,02/12/2014,Travel and subsistence UK,Patents Directorate,Personal expenses name witheld,ER127302,7.85,Not applicable,
Department for Business Innovation and Skills,Intellectual Property Office,16/12/2014,Travel and subsistence UK,"People, Property and Services Directorate",Personal expenses name witheld,ER127422,8.10,Not applicable,
Department for Business Innovation and Skills,Intellectual Property Office,17/12/2014,Travel and subsistence UK,"People, Property and Services Directorate",Personal expenses name witheld,ER127968,8.10,Not applicable,
Department for Business Innovation and Skills,Intellectual Property Office,10/12/2014,Travel and subsistence UK,"People, Property and Services Directorate",Personal expenses name witheld,ER127745,8.10,Not applicable,
Department for Business Innovation and Skills,Intellectual Property Office,29/12/2014,Travel and subsistence UK,International Policy Directorate,HRG UK,426436720,8.22,Not applicable,
Department for Business Innovation and Skills,Intellectual Property Office,29/12/2014,Travel and subsistence UK,Innovation Directorate,HRG UK,426344127,8.22,Not applicable,
Department for Business Innovation and Skills,Intellectual Property Office,29/12/2014,Travel and subsistence UK,Trade Marks Directorate,HRG UK,426396415,8.22,Not applicable,
Department for Business Innovation and Skills,Intellectual Property Office,29/12/2014,Travel and subsistence UK,Innovation Directorate,HRG UK,426344128,8.22,Not applicable,
Department for Business Innovation and Skills,Intellectual Property Office,29/12/2014,Travel and subsistence UK,Trade Marks Directorate,HRG UK,426436251,8.22,Not applicable,
Department for Business Innovation and Skills,Intellectual Property Office,29/12/2014,Travel and subsistence UK,Trade Marks Directorate,HRG UK,426436252,8.22,Not applicable,
Department for Business Innovation and Skills,Intellectual Property Office,29/12/2014,Travel and subsistence UK,Innovation Directorate,HRG UK,426377867,8.22,Not applicable,
Department for Business Innovation and Skills,Intellectual Property Office,29/12/2014,Travel and subsistence UK,Business Support Directorate,HRG UK,426345748,8.37,Not applicable,
Department for Business Innovation and Skills,Intellectual Property Office,17/12/2014,Travel and subsistence UK,Innovation Directorate,Personal expenses name witheld,ER128069,8.75,Not applicable,
Department for Business Innovation and Skills,Intellectual Property Office,17/12/2014,Travel and subsistence UK,Innovation Directorate,Personal expenses name witheld,ER128071,8.75,Not applicable,
Department for Business Innovation and Skills,Intellectual Property Office,17/12/2014,Travel and subsistence UK,Innovation Directorate,Personal expenses name witheld,ER128070,8.75,Not applicable,
Department for Business Innovation and Skills,Intellectual Property Office,03/12/2014,Travel and subsistence UK,Patents Directorate,Personal expenses name witheld,ER127367,9.00,Not applicable,
Department for Business Innovation and Skills,Intellectual Property Office,08/12/2014,Travel and subsistence UK,Patents Directorate,Personal expenses name witheld,ER127562,9.30,Not applicable,
Department for Business Innovation and Skills,Intellectual Property Office,04/12/2014,Travel and subsistence UK,Trade Marks Directorate,Personal expenses name witheld,ER127381,9.30,Not applicable,
Department for Business Innovation and Skills,Intellectual Property Office,31/12/2014,Travel and subsistence UK,Copyright and IP Enforcement Directorate,Personal expenses name witheld,ER128215,9.30,Not applicable,
Department for Business Innovation and Skills,Intellectual Property Office,22/12/2014,Travel and subsistence UK,Business Support Directorate,Personal expenses name witheld,ER128197,9.30,Not applicable,
Department for Business Innovation and Skills,Intellectual Property Office,22/12/2014,Travel and subsistence UK,Copyright and IP Enforcement Directorate,Personal expenses name witheld,ER128198,9.30,Not applicable,
Department for Business Innovation and Skills,Intellectual Property Office,02/12/2014,Travel and subsistence UK,Innovation Directorate,Personal expenses name witheld,ER127306,9.30,Not applicable,
Department for Business Innovation and Skills,Intellectual Property Office,11/12/2014,Travel and subsistence UK,International Policy Directorate,Personal expenses name witheld,ER127631,9.30,Not applicable,
Department for Business Innovation and Skills,Intellectual Property Office,31/12/2014,Travel and subsistence UK,Copyright and IP Enforcement Directorate,Personal expenses name witheld,ER128246,9.30,Not applicable,
Department for Business Innovation and Skills,Intellectual Property Office,08/12/2014,Travel and subsistence UK,Copyright and IP Enforcement Directorate,Personal expenses name witheld,ER127523,9.30,Not applicable,
Department for Business Innovation and Skills,Intellectual Property Office,04/12/2014,Travel and subsistence UK,Business Support Directorate,Personal expenses name witheld,ER126652,9.30,Not applicable,
Department for Business Innovation and Skills,Intellectual Property Office,29/12/2014,Travel and subsistence UK,Finance Directorate,HRG UK,426443996,9.72,Not applicable,
Department for Business Innovation and Skills,Intellectual Property Office,29/12/2014,Travel and subsistence UK,Business Support Directorate,HRG UK,426582337,9.72,Not applicable,
Department for Business Innovation and Skills,Intellectual Property Office,29/12/2014,Travel and subsistence UK,Innovation Directorate,HRG UK,426432285,9.72,Not applicable,
Department for Business Innovation and Skills,Intellectual Property Office,29/12/2014,Travel and subsistence UK,Innovation Directorate,HRG UK,426567588,9.72,Not applicable,
Department for Business Innovation and Skills,Intellectual Property Office,29/12/2014,Travel and subsistence UK,Copyright and IP Enforcement Directorate,HRG UK,426266652,9.72,Not applicable,
Department for Business Innovation and Skills,Intellectual Property Office,29/12/2014,Travel and subsistence UK,Business Support Directorate,HRG UK,426416807,9.72,Not applicable,
Department for Business Innovation and Skills,Intellectual Property Office,29/12/2014,Travel and subsistence UK,Copyright and IP Enforcement Directorate,HRG UK,426298233,9.72,Not applicable,
Department for Business Innovation and Skills,Intellectual Property Office,29/12/2014,Travel and subsistence UK,Trade Marks Directorate,HRG UK,426359184,9.72,Not applicable,
Department for Business Innovation and Skills,Intellectual Property Office,29/12/2014,Travel and subsistence UK,International Policy Directorate,HRG UK,426366175,9.72,Not applicable,
Department for Business Innovation and Skills,Intellectual Property Office,29/12/2014,Travel and subsistence UK,Copyright and IP Enforcement Directorate,HRG UK,426359122,9.72,Not applicable,
Department for Business Innovation and Skills,Intellectual Property Office,29/12/2014,Travel and subsistence UK,Business Support Directorate,HRG UK,426353959,9.72,Not applicable,
Department for Business Innovation and Skills,Intellectual Property Office,29/12/2014,Travel and subsistence UK,Business Support Directorate,HRG UK,426283803,9.72,Not applicable,
Department for Business Innovation and Skills,Intellectual Property Office,29/12/2014,Travel and subsistence UK,Central Support,HRG UK,426518982,9.72,Not applicable,
Department for Business Innovation and Skills,Intellectual Property Office,29/12/2014,Travel and subsistence UK,Business Support Directorate,HRG UK,426266941,9.72,Not applicable,
Department for Business Innovation and Skills,Intellectual Property Office,16/12/2014,Travel and subsistence UK,Innovation Directorate,Personal expenses name witheld,ER128065,9.90,Not applicable,
Department for Business Innovation and Skills,Intellectual Property Office,19/12/2014,Travel and subsistence UK,Patents Directorate,Personal expenses name witheld,ER127955,10.20,Not applicable,
Department for Business Innovation and Skills,Intellectual Property Office,29/12/2014,Travel and subsistence UK,Patents Directorate,HRG UK,426561773,10.26,Not applicable,
Department for Business Innovation and Skills,Intellectual Property Office,11/12/2014,Travel and subsistence UK,"People, Property and Services Directorate",Personal expenses name witheld,ER127825,11.70,Not applicable,
Department for Business Innovation and Skills,Intellectual Property Office,23/12/2014,Travel and subsistence UK,"People, Property and Services Directorate",Personal expenses name witheld,ER128239,11.70,Not applicable,
Department for Business Innovation and Skills,Intellectual Property Office,17/12/2014,Travel and subsistence UK,Patents Directorate,Personal expenses name witheld,ER128089,11.95,Not applicable,
Department for Business Innovation and Skills,Intellectual Property Office,03/12/2014,Travel and subsistence UK,"People, Property and Services Directorate",Personal expenses name witheld,ER126922,12.00,Not applicable,
Department for Business Innovation and Skills,Intellectual Property Office,29/12/2014,Travel and subsistence UK,Business Support Directorate,HRG UK,426332445,12.55,Not applicable,
Department for Business Innovation and Skills,Intellectual Property Office,19/12/2014,Travel and subsistence UK,Patents Directorate,Personal expenses name witheld,ER128175,12.60,Not applicable,
Department for Business Innovation and Skills,Intellectual Property Office,31/12/2014,Travel and subsistence UK,Business Support Directorate,Personal expenses name witheld,ER127666,12.60,Not applicable,
Department for Business Innovation and Skills,Intellectual Property Office,02/12/2014,Travel and subsistence UK,Business Support Directorate,Personal expenses name witheld,ER127339,12.60,Not applicable,
Department for Business Innovation and Skills,Intellectual Property Office,22/12/2014,Travel and subsistence UK,Business Support Directorate,Personal expenses name witheld,ER128051,12.60,Not applicable,
Department for Business Innovation and Skills,Intellectual Property Office,29/12/2014,Travel and subsistence UK,"People, Property and Services Directorate",HRG UK,426271524,12.84,Not applicable,
Department for Business Innovation and Skills,Intellectual Property Office,22/12/2014,Travel and subsistence UK,Copyright and IP Enforcement Directorate,Personal expenses name witheld,ER127364,13.10,Not applicable,
Department for Business Innovation and Skills,Intellectual Property Office,03/12/2014,Travel and subsistence UK,Trade Marks Directorate,Veezu Ltd T/A Dragon Taxis (Newport),2797,13.20,Not applicable,
Department for Business Innovation and Skills,Intellectual Property Office,18/12/2014,Travel and subsistence UK,Innovation Directorate,Personal expenses name witheld,ER128173,13.70,Not applicable,
Department for Business Innovation and Skills,Intellectual Property Office,09/12/2014,Travel and subsistence UK,Innovation Directorate,Personal expenses name witheld,ER127685,13.80,Not applicable,
Department for Business Innovation and Skills,Intellectual Property Office,05/12/2014,Travel and subsistence UK,International Policy Directorate,Personal expenses name witheld,ER127544,14.98,Not applicable,
Department for Business Innovation and Skills,Intellectual Property Office,01/12/2014,Travel and subsistence UK,Business Support Directorate,Personal expenses name witheld,ER127299,15.37,Not applicable,
Department for Business Innovation and Skills,Intellectual Property Office,03/12/2014,Travel and subsistence UK,Trade Marks Directorate,Veezu Ltd T/A Dragon Taxis (Newport),2797,15.60,Not applicable,
Department for Business Innovation and Skills,Intellectual Property Office,29/12/2014,Travel and subsistence UK,"People, Property and Services Directorate",HRG UK,426271522,15.65,Not applicable,
Department for Business Innovation and Skills,Intellectual Property Office,16/12/2014,Travel and subsistence UK,Finance Directorate,Personal expenses name witheld,52680,15.70,Not applicable,
Department for Business Innovation and Skills,Intellectual Property Office,16/12/2014,Travel and subsistence UK,Patents Directorate,Leasedrive Velo Rental Management Ltd,RHI01271592,16.51,Not applicable,
Department for Business Innovation and Skills,Intellectual Property Office,18/12/2014,Travel and subsistence UK,Trade Marks Directorate,Personal expenses name witheld,ER128171,17.00,Not applicable,
Department for Business Innovation and Skills,Intellectual Property Office,11/12/2014,Travel and subsistence UK,Trade Marks Directorate,Personal expenses name witheld,ER127865,17.00,Not applicable,
Department for Business Innovation and Skills,Intellectual Property Office,12/12/2014,Travel and subsistence UK,Central Support,Personal expenses name witheld,ER127947,17.00,Not applicable,
Department for Business Innovation and Skills,Intellectual Property Office,22/12/2014,Travel and subsistence UK,International Policy Directorate,Personal expenses name witheld,ER128067,17.20,Not applicable,
Department for Business Innovation and Skills,Intellectual Property Office,02/12/2014,Travel and subsistence UK,International Policy Directorate,Personal expenses name witheld,ER127237,17.20,Not applicable,
Department for Business Innovation and Skills,Intellectual Property Office,11/12/2014,Travel and subsistence UK,International Policy Directorate,Personal expenses name witheld,ER127889,17.20,Not applicable,
Department for Business Innovation and Skills,Intellectual Property Office,19/12/2014,Travel and subsistence UK,Copyright and IP Enforcement Directorate,Personal expenses name witheld,ER127786,17.75,Not applicable,
Department for Business Innovation and Skills,Intellectual Property Office,29/12/2014,Travel and subsistence UK,Copyright and IP Enforcement Directorate,HRG UK,426399611,17.84,Not applicable,
Department for Business Innovation and Skills,Intellectual Property Office,09/12/2014,Travel and subsistence UK,Patents Directorate,Personal expenses name witheld,ER126918,18.00,Not applicable,
Department for Business Innovation and Skills,Intellectual Property Office,03/12/2014,Travel and subsistence UK,Copyright and IP Enforcement Directorate,Veezu Ltd T/A Dragon Taxis (Newport),2797,18.00,Not applicable,
Department for Business Innovation and Skills,Intellectual Property Office,11/12/2014,Travel and subsistence UK,Patents Directorate,Personal expenses name witheld,ER127906,18.30,Not applicable,
Department for Business Innovation and Skills,Intellectual Property Office,08/12/2014,Travel and subsistence UK,Central Support,Personal expenses name witheld,ER127527,18.40,Not applicable,
Department for Business Innovation and Skills,Intellectual Property Office,16/12/2014,Travel and subsistence UK,International Policy Directorate,Personal expenses name witheld,ER128026,18.60,Not applicable,
Department for Business Innovation and Skills,Intellectual Property Office,16/12/2014,Travel and subsistence UK,International Policy Directorate,Personal expenses name witheld,ER128028,18.60,Not applicable,
Department for Business Innovation and Skills,Intellectual Property Office,09/12/2014,Travel and subsistence UK,International Policy Directorate,Personal expenses name witheld,ER127626,18.60,Not applicable,
Department for Business Innovation and Skills,Intellectual Property Office,02/12/2014,Travel and subsistence UK,Patents Directorate,Personal expenses name witheld,ER127308,19.30,Not applicable,
Department for Business Innovation and Skills,Intellectual Property Office,22/12/2014,Travel and subsistence UK,Copyright and IP Enforcement Directorate,Personal expenses name witheld,ER127361,19.30,Not applicable,
Department for Business Innovation and Skills,Intellectual Property Office,16/12/2014,Travel and subsistence UK,"People, Property and Services Directorate",Personal expenses name witheld,ER127847,19.36,Not applicable,
Department for Business Innovation and Skills,Intellectual Property Office,03/12/2014,Travel and subsistence UK,Trade Marks Directorate,Veezu Ltd T/A Dragon Taxis (Newport),2797,19.80,Not applicable,
Department for Business Innovation and Skills,Intellectual Property Office,17/12/2014,Travel and subsistence UK,International Policy Directorate,Personal expenses name witheld,ER128108,19.90,Not applicable,
Department for Business Innovation and Skills,Intellectual Property Office,16/12/2014,Travel and subsistence UK,"People, Property and Services Directorate",Personal expenses name witheld,ER128061,20.00,Not applicable,
Department for Business Innovation and Skills,Intellectual Property Office,09/12/2014,Travel and subsistence UK,"People, Property and Services Directorate",Personal expenses name witheld,ER127543,20.00,Not applicable,
Department for Business Innovation and Skills,Intellectual Property Office,11/12/2014,Travel and subsistence UK,Trade Marks Directorate,Personal expenses name witheld,ER127891,20.15,Not applicable,
Department for Business Innovation and Skills,Intellectual Property Office,29/12/2014,Travel and subsistence UK,Business Support Directorate,HRG UK,426583385,20.53,Not applicable,
Department for Business Innovation and Skills,Intellectual Property Office,29/12/2014,Travel and subsistence UK,Innovation Directorate,HRG UK,426484392,20.73,Not applicable,
Department for Business Innovation and Skills,Intellectual Property Office,03/12/2014,Travel and subsistence UK,Central Support,Veezu Ltd T/A Dragon Taxis (Newport),2797,21.00,Not applicable,
Department for Business Innovation and Skills,Intellectual Property Office,29/12/2014,Travel and subsistence UK,"People, Property and Services Directorate",HRG UK,426332440,21.03,Not applicable,
Department for Business Innovation and Skills,Intellectual Property Office,29/12/2014,Travel and subsistence UK,Finance Directorate,HRG UK,426596113,21.03,Not applicable,
Department for Business Innovation and Skills,Intellectual Property Office,29/12/2014,Travel and subsistence UK,"People, Property and Services Directorate",HRG UK,426332434,21.03,Not applicable,
Department for Business Innovation and Skills,Intellectual Property Office,29/12/2014,Travel and subsistence UK,International Policy Directorate,HRG UK,426454671,21.04,Not applicable,
Department for Business Innovation and Skills,Intellectual Property Office,29/12/2014,Travel and subsistence UK,Copyright and IP Enforcement Directorate,HRG UK,426316911,21.04,Not applicable,
Department for Business Innovation and Skills,Intellectual Property Office,29/12/2014,Travel and subsistence UK,International Policy Directorate,HRG UK,426414113,21.04,Not applicable,
Department for Business Innovation and Skills,Intellectual Property Office,29/12/2014,Travel and subsistence UK,Copyright and IP Enforcement Directorate,HRG UK,426316915,21.04,Not applicable,
Department for Business Innovation and Skills,Intellectual Property Office,29/12/2014,Travel and subsistence UK,International Policy Directorate,HRG UK,426414109,21.04,Not applicable,
Department for Business Innovation and Skills,Intellectual Property Office,29/12/2014,Travel and subsistence UK,International Policy Directorate,HRG UK,426414111,21.04,Not applicable,
Department for Business Innovation and Skills,Intellectual Property Office,29/12/2014,Travel and subsistence UK,International Policy Directorate,HRG UK,426572178,21.04,Not applicable,
Department for Business Innovation and Skills,Intellectual Property Office,29/12/2014,Travel and subsistence UK,International Policy Directorate,HRG UK,426414107,21.04,Not applicable,
Department for Business Innovation and Skills,Intellectual Property Office,29/12/2014,Travel and subsistence UK,International Policy Directorate,HRG UK,426332447,21.04,Not applicable,
Department for Business Innovation and Skills,Intellectual Property Office,29/12/2014,Travel and subsistence UK,International Policy Directorate,HRG UK,426414105,21.04,Not applicable,
Department for Business Innovation and Skills,Intellectual Property Office,15/12/2014,Travel and subsistence UK,Patents Directorate,Personal expenses name witheld,ER127806,21.25,Not applicable,
Department for Business Innovation and Skills,Intellectual Property Office,02/12/2014,Travel and subsistence UK,Innovation Directorate,Personal expenses name witheld,ER127319,21.35,Not applicable,
Department for Business Innovation and Skills,Intellectual Property Office,29/12/2014,Travel and subsistence UK,International Policy Directorate,HRG UK,426460042,21.65,Not applicable,
Department for Business Innovation and Skills,Intellectual Property Office,29/12/2014,Travel and subsistence UK,International Policy Directorate,HRG UK,426316903,21.84,Not applicable,
Department for Business Innovation and Skills,Intellectual Property Office,29/12/2014,Travel and subsistence UK,International Policy Directorate,HRG UK,426427113,21.84,Not applicable,
Department for Business Innovation and Skills,Intellectual Property Office,23/12/2014,Travel and subsistence UK,Patents Directorate,Personal expenses name witheld,ER128236,21.90,Not applicable,
Department for Business Innovation and Skills,Intellectual Property Office,29/12/2014,Travel and subsistence UK,Copyright and IP Enforcement Directorate,HRG UK,426400149,21.93,Not applicable,
Department for Business Innovation and Skills,Intellectual Property Office,04/12/2014,Travel and subsistence UK,Copyright and IP Enforcement Directorate,Personal expenses name witheld,ER127360,22.10,Not applicable,
Department for Business Innovation and Skills,Intellectual Property Office,08/12/2014,Travel and subsistence UK,"People, Property and Services Directorate",Leasedrive Velo Rental Management Ltd,RHI01285944,22.26,Not applicable,
Department for Business Innovation and Skills,Intellectual Property Office,18/12/2014,Travel and subsistence UK,Patents Directorate,Personal expenses name witheld,ER128109,23.30,Not applicable,
Department for Business Innovation and Skills,Intellectual Property Office,29/12/2014,Travel and subsistence UK,International Policy Directorate,HRG UK,426433802,23.53,Not applicable,
Department for Business Innovation and Skills,Intellectual Property Office,29/12/2014,Travel and subsistence UK,Copyright and IP Enforcement Directorate,HRG UK,426500700,23.73,Not applicable,
Department for Business Innovation and Skills,Intellectual Property Office,29/12/2014,Travel and subsistence UK,Copyright and IP Enforcement Directorate,HRG UK,426316907,23.83,Not applicable,
Department for Business Innovation and Skills,Intellectual Property Office,05/12/2014,Travel and subsistence UK,Business Support Directorate,Personal expenses name witheld,ER126901,24.00,Not applicable,
Department for Business Innovation and Skills,Intellectual Property Office,05/12/2014,Travel and subsistence UK,Business Support Directorate,Personal expenses name witheld,ER127320,24.00,Not applicable,
Department for Business Innovation and Skills,Intellectual Property Office,17/12/2014,Travel and subsistence UK,Business Support Directorate,Personal expenses name witheld,ER127746,24.00,Not applicable,
Department for Business Innovation and Skills,Intellectual Property Office,17/12/2014,Travel and subsistence UK,Business Support Directorate,Personal expenses name witheld,ER128057,24.00,Not applicable,
Department for Business Innovation and Skills,Intellectual Property Office,29/12/2014,Travel and subsistence UK,Copyright and IP Enforcement Directorate,HRG UK,426259245,24.13,Not applicable,
Department for Business Innovation and Skills,Intellectual Property Office,22/12/2014,Travel and subsistence UK,Copyright and IP Enforcement Directorate,Personal expenses name witheld,ER127363,24.30,Not applicable,
Department for Business Innovation and Skills,Intellectual Property Office,29/12/2014,Travel and subsistence UK,Copyright and IP Enforcement Directorate,HRG UK,426500711,24.53,Not applicable,
Department for Business Innovation and Skills,Intellectual Property Office,29/12/2014,Travel and subsistence UK,Business Support Directorate,HRG UK,426330948,24.53,Not applicable,
Department for Business Innovation and Skills,Intellectual Property Office,29/12/2014,Travel and subsistence UK,Innovation Directorate,HRG UK,426500699,24.93,Not applicable,
Department for Business Innovation and Skills,Intellectual Property Office,29/12/2014,Travel and subsistence UK,International Policy Directorate,HRG UK,426424149,24.93,Not applicable,
Department for Business Innovation and Skills,Intellectual Property Office,29/12/2014,Travel and subsistence UK,Innovation Directorate,HRG UK,426500697,24.93,Not applicable,
Department for Business Innovation and Skills,Intellectual Property Office,29/12/2014,Travel and subsistence UK,International Policy Directorate,HRG UK,426286370,24.93,Not applicable,
Department for Business Innovation and Skills,Intellectual Property Office,29/12/2014,Travel and subsistence UK,International Policy Directorate,HRG UK,426433804,24.93,Not applicable,
Department for Business Innovation and Skills,Intellectual Property Office,29/12/2014,Travel and subsistence UK,Finance Directorate,HRG UK,426596937,25.13,Not applicable,
Department for Business Innovation and Skills,Intellectual Property Office,29/12/2014,Travel and subsistence UK,Finance Directorate,HRG UK,426596938,25.13,Not applicable,
Department for Business Innovation and Skills,Intellectual Property Office,08/12/2014,Travel and subsistence UK,Trade Marks Directorate,Personal expenses name witheld,ER127603,25.50,Not applicable,
Department for Business Innovation and Skills,Intellectual Property Office,29/12/2014,Travel and subsistence UK,Innovation Directorate,HRG UK,426484404,25.72,Not applicable,
Department for Business Innovation and Skills,Intellectual Property Office,08/12/2014,Travel and subsistence UK,Business Support Directorate,Personal expenses name witheld,ER127359,25.90,Not applicable,
Department for Business Innovation and Skills,Intellectual Property Office,29/12/2014,Travel and subsistence UK,International Policy Directorate,HRG UK,426458480,26.63,Not applicable,
Department for Business Innovation and Skills,Intellectual Property Office,29/12/2014,Travel and subsistence UK,Copyright and IP Enforcement Directorate,HRG UK,426403668,26.63,Not applicable,
Department for Business Innovation and Skills,Intellectual Property Office,29/12/2014,Travel and subsistence UK,Copyright and IP Enforcement Directorate,HRG UK,426572169,26.63,Not applicable,
Department for Business Innovation and Skills,Intellectual Property Office,29/12/2014,Travel and subsistence UK,Copyright and IP Enforcement Directorate,HRG UK,426316913,27.12,Not applicable,
Department for Business Innovation and Skills,Intellectual Property Office,29/12/2014,Travel and subsistence UK,Innovation Directorate,HRG UK,426512272,27.61,Not applicable,
Department for Business Innovation and Skills,Intellectual Property Office,18/12/2014,Travel and subsistence UK,Innovation Directorate,Personal expenses name witheld,ER128172,28.20,Not applicable,
Department for Business Innovation and Skills,Intellectual Property Office,29/12/2014,Travel and subsistence UK,Innovation Directorate,HRG UK,426376520,28.52,Not applicable,
Department for Business Innovation and Skills,Intellectual Property Office,12/12/2014,Travel and subsistence UK,"People, Property and Services Directorate",Personal expenses name witheld,ER127951,28.55,Not applicable,
Department for Business Innovation and Skills,Intellectual Property Office,29/12/2014,Travel and subsistence UK,Copyright and IP Enforcement Directorate,HRG UK,426427121,28.82,Not applicable,
Department for Business Innovation and Skills,Intellectual Property Office,29/12/2014,Travel and subsistence UK,Innovation Directorate,HRG UK,426484393,28.82,Not applicable,
Department for Business Innovation and Skills,Intellectual Property Office,12/12/2014,Travel and subsistence UK,"People, Property and Services Directorate",Personal expenses name witheld,ER127965,29.40,Not applicable,
Department for Business Innovation and Skills,Intellectual Property Office,29/12/2014,Travel and subsistence UK,Copyright and IP Enforcement Directorate,HRG UK,426558425,29.92,Not applicable,
Department for Business Innovation and Skills,Intellectual Property Office,10/12/2014,Travel and subsistence UK,Innovation Directorate,Leasedrive Velo Rental Management Ltd,INV00069291,30.00,Not applicable,
Department for Business Innovation and Skills,Intellectual Property Office,29/12/2014,Travel and subsistence UK,Innovation Directorate,HRG UK,426345747,30.22,Not applicable,
Department for Business Innovation and Skills,Intellectual Property Office,22/12/2014,Travel and subsistence UK,Business Support Directorate,Personal expenses name witheld,ER127950,30.35,Not applicable,
Department for Business Innovation and Skills,Intellectual Property Office,29/12/2014,Travel and subsistence UK,"People, Property and Services Directorate",HRG UK,426332439,30.51,Not applicable,
Department for Business Innovation and Skills,Intellectual Property Office,29/12/2014,Travel and subsistence UK,International Policy Directorate,HRG UK,426589243,30.82,Not applicable,
Department for Business Innovation and Skills,Intellectual Property Office,29/12/2014,Travel and subsistence UK,International Policy Directorate,HRG UK,426589244,30.82,Not applicable,
Department for Business Innovation and Skills,Intellectual Property Office,29/12/2014,Travel and subsistence UK,"People, Property and Services Directorate",HRG UK,426345758,31.51,Not applicable,
Department for Business Innovation and Skills,Intellectual Property Office,29/12/2014,Travel and subsistence UK,"People, Property and Services Directorate",HRG UK,426345760,31.51,Not applicable,
Department for Business Innovation and Skills,Intellectual Property Office,29/12/2014,Travel and subsistence UK,Business Support Directorate,HRG UK,426332424,31.70,Not applicable,
Department for Business Innovation and Skills,Intellectual Property Office,29/12/2014,Travel and subsistence UK,Copyright and IP Enforcement Directorate,HRG UK,426484397,31.81,Not applicable,
Department for Business Innovation and Skills,Intellectual Property Office,29/12/2014,Travel and subsistence UK,Innovation Directorate,HRG UK,426438091,33.10,Not applicable,
Department for Business Innovation and Skills,Intellectual Property Office,29/12/2014,Travel and subsistence UK,Copyright and IP Enforcement Directorate,HRG UK,426433805,33.70,Not applicable,
Department for Business Innovation and Skills,Intellectual Property Office,19/12/2014,Travel and subsistence UK,Trade Marks Directorate,Gavin Terry,52688,34.20,Not applicable,
Department for Business Innovation and Skills,Intellectual Property Office,29/12/2014,Travel and subsistence UK,Business Support Directorate,HRG UK,426583386,35.19,Not applicable,
Department for Business Innovation and Skills,Intellectual Property Office,18/12/2014,Travel and subsistence UK,International Policy Directorate,Personal expenses name witheld,ER127866,35.40,Not applicable,
Department for Business Innovation and Skills,Intellectual Property Office,03/12/2014,Travel and subsistence UK,Business Support Directorate,Personal expenses name witheld,ER127365,35.91,Not applicable,
Department for Business Innovation and Skills,Intellectual Property Office,29/12/2014,Travel and subsistence UK,International Policy Directorate,HRG UK,426572170,36.29,Not applicable,
Department for Business Innovation and Skills,Intellectual Property Office,29/12/2014,Travel and subsistence UK,International Policy Directorate,HRG UK,426332446,36.29,Not applicable,
Department for Business Innovation and Skills,Intellectual Property Office,29/12/2014,Travel and subsistence UK,Innovation Directorate,HRG UK,426345746,36.29,Not applicable,
Department for Business Innovation and Skills,Intellectual Property Office,23/12/2014,Travel and subsistence UK,Innovation Directorate,Leasedrive Velo Rental Management Ltd,RHI01292195,36.82,Not applicable,
Department for Business Innovation and Skills,Intellectual Property Office,03/12/2014,Travel and subsistence UK,Trade Marks Directorate,Veezu Ltd T/A Dragon Taxis (Newport),2797,37.20,Not applicable,
Department for Business Innovation and Skills,Intellectual Property Office,29/12/2014,Travel and subsistence UK,Innovation Directorate,HRG UK,426438092,37.59,Not applicable,
Department for Business Innovation and Skills,Intellectual Property Office,24/12/2014,Travel and subsistence UK,Finance Directorate,Personal expenses name witheld,ER128247,37.90,Not applicable,
Department for Business Innovation and Skills,Intellectual Property Office,01/12/2014,Travel and subsistence UK,Trade Marks Directorate,Leasedrive Velo Rental Management Ltd,RHI01281181,37.94,Not applicable,
Department for Business Innovation and Skills,Intellectual Property Office,29/12/2014,Travel and subsistence UK,Innovation Directorate,HRG UK,426403671,38.39,Not applicable,
Department for Business Innovation and Skills,Intellectual Property Office,29/12/2014,Travel and subsistence UK,International Policy Directorate,HRG UK,426427119,38.39,Not applicable,
Department for Business Innovation and Skills,Intellectual Property Office,29/12/2014,Travel and subsistence UK,Business Support Directorate,HRG UK,426316898,38.39,Not applicable,
Department for Business Innovation and Skills,Intellectual Property Office,29/12/2014,Travel and subsistence UK,Copyright and IP Enforcement Directorate,HRG UK,426403679,38.39,Not applicable,
Department for Business Innovation and Skills,Intellectual Property Office,29/12/2014,Travel and subsistence UK,International Policy Directorate,HRG UK,426332427,38.39,Not applicable,
Department for Business Innovation and Skills,Intellectual Property Office,29/12/2014,Travel and subsistence UK,International Policy Directorate,HRG UK,426484391,38.39,Not applicable,
Department for Business Innovation and Skills,Intellectual Property Office,29/12/2014,Travel and subsistence UK,Copyright and IP Enforcement Directorate,HRG UK,426316912,39.08,Not applicable,
Department for Business Innovation and Skills,Intellectual Property Office,29/12/2014,Travel and subsistence UK,International Policy Directorate,HRG UK,426275250,39.28,Not applicable,
Department for Business Innovation and Skills,Intellectual Property Office,29/12/2014,Travel and subsistence UK,International Policy Directorate,HRG UK,426332417,39.59,Not applicable,
Department for Business Innovation and Skills,Intellectual Property Office,29/12/2014,Travel and subsistence UK,International Policy Directorate,HRG UK,426332419,39.59,Not applicable,
Department for Business Innovation and Skills,Intellectual Property Office,10/12/2014,Travel and subsistence UK,International Policy Directorate,Personal expenses name witheld,ER127633,40.00,Not applicable,
Department for Business Innovation and Skills,Intellectual Property Office,01/12/2014,Travel and subsistence UK,Patents Directorate,Leasedrive Velo Rental Management Ltd,RHI01277561,41.27,Not applicable,
Department for Business Innovation and Skills,Intellectual Property Office,16/12/2014,Travel and subsistence UK,Patents Directorate,Leasedrive Velo Rental Management Ltd,RHI01270599,41.27,Not applicable,
Department for Business Innovation and Skills,Intellectual Property Office,29/12/2014,Travel and subsistence UK,Copyright and IP Enforcement Directorate,HRG UK,426561777,41.39,Not applicable,
Department for Business Innovation and Skills,Intellectual Property Office,29/12/2014,Travel and subsistence UK,"People, Property and Services Directorate",HRG UK,426345761,41.39,Not applicable,
Department for Business Innovation and Skills,Intellectual Property Office,29/12/2014,Travel and subsistence UK,Copyright and IP Enforcement Directorate,HRG UK,426500701,41.39,Not applicable,
Department for Business Innovation and Skills,Intellectual Property Office,29/12/2014,Travel and subsistence UK,Copyright and IP Enforcement Directorate,HRG UK,426259239,41.68,Not applicable,
Department for Business Innovation and Skills,Intellectual Property Office,29/12/2014,Travel and subsistence UK,Patents Directorate,HRG UK,426345754,41.89,Not applicable,
Department for Business Innovation and Skills,Intellectual Property Office,29/12/2014,Travel and subsistence UK,Finance Directorate,HRG UK,426595541,41.97,Not applicable,
Department for Business Innovation and Skills,Intellectual Property Office,29/12/2014,Travel and subsistence UK,International Policy Directorate,HRG UK,426575260,41.97,Not applicable,
Department for Business Innovation and Skills,Intellectual Property Office,05/12/2014,Travel and subsistence UK,Innovation Directorate,Leasedrive Velo Rental Management Ltd,RHI01283088,42.88,Not applicable,
Department for Business Innovation and Skills,Intellectual Property Office,12/12/2014,Travel and subsistence UK,Copyright and IP Enforcement Directorate,Personal expenses name witheld,ER127953,43.31,Not applicable,
Department for Business Innovation and Skills,Intellectual Property Office,29/12/2014,Travel and subsistence UK,International Policy Directorate,HRG UK,426332415,43.48,Not applicable,
Department for Business Innovation and Skills,Intellectual Property Office,12/12/2014,Travel and subsistence UK,Business Support Directorate,Leasedrive Velo Rental Management Ltd,RHI01273874,43.73,Not applicable,
Department for Business Innovation and Skills,Intellectual Property Office,08/12/2014,Travel and subsistence UK,Innovation Directorate,Personal expenses name witheld,ER127623,43.80,Not applicable,
Department for Business Innovation and Skills,Intellectual Property Office,19/12/2014,Travel and subsistence UK,Patents Directorate,Personal expenses name witheld,ER128170,44.03,Not applicable,
Department for Business Innovation and Skills,Intellectual Property Office,15/12/2014,Travel and subsistence UK,Patents Directorate,Personal expenses name witheld,ER127948,44.30,Not applicable,
Department for Business Innovation and Skills,Intellectual Property Office,29/12/2014,Travel and subsistence UK,Copyright and IP Enforcement Directorate,HRG UK,426554857,44.96,Not applicable,
Department for Business Innovation and Skills,Intellectual Property Office,29/12/2014,Travel and subsistence UK,International Policy Directorate,HRG UK,426427122,45.47,Not applicable,
Department for Business Innovation and Skills,Intellectual Property Office,29/12/2014,Travel and subsistence UK,Finance Directorate,HRG UK,426316908,45.47,Not applicable,
Department for Business Innovation and Skills,Intellectual Property Office,29/12/2014,Travel and subsistence UK,Finance Directorate,HRG UK,426595542,45.47,Not applicable,
Department for Business Innovation and Skills,Intellectual Property Office,09/12/2014,Travel and subsistence UK,Innovation Directorate,Personal expenses name witheld,ER127712,45.93,Not applicable,
Department for Business Innovation and Skills,Intellectual Property Office,29/12/2014,Travel and subsistence UK,"People, Property and Services Directorate",HRG UK,426595543,46.76,Not applicable,
Department for Business Innovation and Skills,Intellectual Property Office,29/12/2014,Travel and subsistence UK,International Policy Directorate,HRG UK,426403677,47.07,Not applicable,
Department for Business Innovation and Skills,Intellectual Property Office,29/12/2014,Travel and subsistence UK,Copyright and IP Enforcement Directorate,HRG UK,426259243,47.47,Not applicable,
Department for Business Innovation and Skills,Intellectual Property Office,29/12/2014,Travel and subsistence UK,Copyright and IP Enforcement Directorate,HRG UK,426427120,47.86,Not applicable,
Department for Business Innovation and Skills,Intellectual Property Office,29/12/2014,Travel and subsistence UK,International Policy Directorate,HRG UK,426316900,47.86,Not applicable,
Department for Business Innovation and Skills,Intellectual Property Office,29/12/2014,Travel and subsistence UK,International Policy Directorate,HRG UK,426433803,47.86,Not applicable,
Department for Business Innovation and Skills,Intellectual Property Office,29/12/2014,Travel and subsistence UK,International Policy Directorate,HRG UK,426332426,47.86,Not applicable,
Department for Business Innovation and Skills,Intellectual Property Office,29/12/2014,Travel and subsistence UK,Innovation Directorate,HRG UK,426438093,47.86,Not applicable,
Department for Business Innovation and Skills,Intellectual Property Office,29/12/2014,Travel and subsistence UK,International Policy Directorate,HRG UK,426427118,47.86,Not applicable,
Department for Business Innovation and Skills,Intellectual Property Office,29/12/2014,Travel and subsistence UK,Innovation Directorate,HRG UK,426572166,47.86,Not applicable,
Department for Business Innovation and Skills,Intellectual Property Office,29/12/2014,Travel and subsistence UK,Copyright and IP Enforcement Directorate,HRG UK,426316910,47.86,Not applicable,
Department for Business Innovation and Skills,Intellectual Property Office,29/12/2014,Travel and subsistence UK,International Policy Directorate,HRG UK,426454670,47.86,Not applicable,
Department for Business Innovation and Skills,Intellectual Property Office,29/12/2014,Travel and subsistence UK,International Policy Directorate,HRG UK,426427117,47.86,Not applicable,
Department for Business Innovation and Skills,Intellectual Property Office,29/12/2014,Travel and subsistence UK,Innovation Directorate,HRG UK,426484403,47.86,Not applicable,
Department for Business Innovation and Skills,Intellectual Property Office,29/12/2014,Travel and subsistence UK,Innovation Directorate,HRG UK,426500702,47.86,Not applicable,
Department for Business Innovation and Skills,Intellectual Property Office,29/12/2014,Travel and subsistence UK,Copyright and IP Enforcement Directorate,HRG UK,426484394,47.86,Not applicable,
Department for Business Innovation and Skills,Intellectual Property Office,29/12/2014,Travel and subsistence UK,International Policy Directorate,HRG UK,426414108,47.86,Not applicable,
Department for Business Innovation and Skills,Intellectual Property Office,29/12/2014,Travel and subsistence UK,Innovation Directorate,HRG UK,426500696,47.86,Not applicable,
Department for Business Innovation and Skills,Intellectual Property Office,29/12/2014,Travel and subsistence UK,Innovation Directorate,HRG UK,426500698,47.86,Not applicable,
Department for Business Innovation and Skills,Intellectual Property Office,29/12/2014,Travel and subsistence UK,International Policy Directorate,HRG UK,426286369,47.86,Not applicable,
Department for Business Innovation and Skills,Intellectual Property Office,29/12/2014,Travel and subsistence UK,International Policy Directorate,HRG UK,426414112,47.86,Not applicable,
Department for Business Innovation and Skills,Intellectual Property Office,29/12/2014,Travel and subsistence UK,International Policy Directorate,HRG UK,426414110,47.86,Not applicable,
Department for Business Innovation and Skills,Intellectual Property Office,29/12/2014,Travel and subsistence UK,Business Support Directorate,HRG UK,426376537,47.87,Not applicable,
Department for Business Innovation and Skills,Intellectual Property Office,29/12/2014,Travel and subsistence UK,Innovation Directorate,HRG UK,426275249,49.87,Not applicable,
Department for Business Innovation and Skills,Intellectual Property Office,03/12/2014,Travel and subsistence UK,Innovation Directorate,Personal expenses name witheld,ER127321,50.20,Not applicable,
Department for Business Innovation and Skills,Intellectual Property Office,17/12/2014,Travel and subsistence UK,Patents Directorate,Personal expenses name witheld,ER128091,50.40,Not applicable,
Department for Business Innovation and Skills,Intellectual Property Office,29/12/2014,Travel and subsistence UK,International Policy Directorate,HRG UK,426460041,50.65,Not applicable,
Department for Business Innovation and Skills,Intellectual Property Office,29/12/2014,Travel and subsistence UK,Copyright and IP Enforcement Directorate,HRG UK,426433806,50.66,Not applicable,
Department for Business Innovation and Skills,Intellectual Property Office,29/12/2014,Travel and subsistence UK,Copyright and IP Enforcement Directorate,HRG UK,426554856,50.86,Not applicable,
Department for Business Innovation and Skills,Intellectual Property Office,29/12/2014,Travel and subsistence UK,Patents Directorate,HRG UK,426517505,50.86,Not applicable,
Department for Business Innovation and Skills,Intellectual Property Office,29/12/2014,Travel and subsistence UK,Patents Directorate,HRG UK,426275246,50.86,Not applicable,
Department for Business Innovation and Skills,Intellectual Property Office,19/12/2014,Travel and subsistence UK,Copyright and IP Enforcement Directorate,Personal expenses name witheld,ER127747,51.00,Not applicable,
Department for Business Innovation and Skills,Intellectual Property Office,29/12/2014,Travel and subsistence UK,Innovation Directorate,HRG UK,426500709,51.05,Not applicable,
Department for Business Innovation and Skills,Intellectual Property Office,29/12/2014,Travel and subsistence UK,Copyright and IP Enforcement Directorate,HRG UK,426561776,51.46,Not applicable,
Department for Business Innovation and Skills,Intellectual Property Office,29/12/2014,Travel and subsistence UK,Copyright and IP Enforcement Directorate,HRG UK,426403667,51.75,Not applicable,
Department for Business Innovation and Skills,Intellectual Property Office,29/12/2014,Travel and subsistence UK,International Policy Directorate,HRG UK,426414104,51.95,Not applicable,
Department for Business Innovation and Skills,Intellectual Property Office,29/12/2014,Travel and subsistence UK,International Policy Directorate,HRG UK,426424148,51.95,Not applicable,
Department for Business Innovation and Skills,Intellectual Property Office,29/12/2014,Travel and subsistence UK,International Policy Directorate,HRG UK,426414106,51.95,Not applicable,
Department for Business Innovation and Skills,Intellectual Property Office,29/12/2014,Travel and subsistence UK,"People, Property and Services Directorate",HRG UK,426595691,52.06,Not applicable,
Department for Business Innovation and Skills,Intellectual Property Office,29/12/2014,Travel and subsistence UK,Innovation Directorate,HRG UK,426345751,52.85,Not applicable,
Department for Business Innovation and Skills,Intellectual Property Office,29/12/2014,Travel and subsistence UK,Trade Marks Directorate,HRG UK,426453456,52.85,Not applicable,
Department for Business Innovation and Skills,Intellectual Property Office,29/12/2014,Travel and subsistence UK,International Policy Directorate,HRG UK,426572175,52.85,Not applicable,
Department for Business Innovation and Skills,Intellectual Property Office,29/12/2014,Travel and subsistence UK,Trade Marks Directorate,HRG UK,426453454,52.85,Not applicable,
Department for Business Innovation and Skills,Intellectual Property Office,29/12/2014,Travel and subsistence UK,Patents Directorate,HRG UK,426484400,52.85,Not applicable,
Department for Business Innovation and Skills,Intellectual Property Office,29/12/2014,Travel and subsistence UK,"People, Property and Services Directorate",HRG UK,426518507,52.85,Not applicable,
Department for Business Innovation and Skills,Intellectual Property Office,29/12/2014,Travel and subsistence UK,Innovation Directorate,HRG UK,426332436,52.85,Not applicable,
Department for Business Innovation and Skills,Intellectual Property Office,29/12/2014,Travel and subsistence UK,Patents Directorate,HRG UK,426518505,52.85,Not applicable,
Department for Business Innovation and Skills,Intellectual Property Office,29/12/2014,Travel and subsistence UK,Patents Directorate,HRG UK,426484402,52.85,Not applicable,
Department for Business Innovation and Skills,Intellectual Property Office,29/12/2014,Travel and subsistence UK,Innovation Directorate,HRG UK,426332431,52.85,Not applicable,
Department for Business Innovation and Skills,Intellectual Property Office,29/12/2014,Travel and subsistence UK,Innovation Directorate,HRG UK,426332433,52.85,Not applicable,
Department for Business Innovation and Skills,Intellectual Property Office,29/12/2014,Travel and subsistence UK,Trade Marks Directorate,HRG UK,426359616,52.85,Not applicable,
Department for Business Innovation and Skills,Intellectual Property Office,29/12/2014,Travel and subsistence UK,Trade Marks Directorate,HRG UK,426403673,52.85,Not applicable,
Department for Business Innovation and Skills,Intellectual Property Office,29/12/2014,Travel and subsistence UK,"People, Property and Services Directorate",HRG UK,426518752,52.85,Not applicable,
Department for Business Innovation and Skills,Intellectual Property Office,29/12/2014,Travel and subsistence UK,Copyright and IP Enforcement Directorate,HRG UK,426505207,53.86,Not applicable,
Department for Business Innovation and Skills,Intellectual Property Office,29/12/2014,Travel and subsistence UK,Copyright and IP Enforcement Directorate,HRG UK,426504990,53.86,Not applicable,
Department for Business Innovation and Skills,Intellectual Property Office,29/12/2014,Travel and subsistence UK,Copyright and IP Enforcement Directorate,HRG UK,426316902,53.86,Not applicable,
Department for Business Innovation and Skills,Intellectual Property Office,29/12/2014,Travel and subsistence UK,Copyright and IP Enforcement Directorate,HRG UK,426316905,53.86,Not applicable,
Department for Business Innovation and Skills,Intellectual Property Office,01/12/2014,Travel and subsistence UK,Patents Directorate,Leasedrive Velo Rental Management Ltd,RHI01279411,55.03,Not applicable,
Department for Business Innovation and Skills,Intellectual Property Office,29/12/2014,Travel and subsistence UK,"People, Property and Services Directorate",HRG UK,426350825,55.05,Not applicable,
Department for Business Innovation and Skills,Intellectual Property Office,29/12/2014,Travel and subsistence UK,"People, Property and Services Directorate",HRG UK,426595690,55.64,Not applicable,
Department for Business Innovation and Skills,Intellectual Property Office,29/12/2014,Travel and subsistence UK,"People, Property and Services Directorate",HRG UK,426451871,56.43,Not applicable,
Department for Business Innovation and Skills,Intellectual Property Office,29/12/2014,Travel and subsistence UK,International Policy Directorate,HRG UK,426416631,56.43,Not applicable,
Department for Business Innovation and Skills,Intellectual Property Office,29/12/2014,Travel and subsistence UK,Trade Marks Directorate,HRG UK,426561778,56.43,Not applicable,
Department for Business Innovation and Skills,Intellectual Property Office,29/12/2014,Travel and subsistence UK,Trade Marks Directorate,HRG UK,426561780,56.43,Not applicable,
Department for Business Innovation and Skills,Intellectual Property Office,29/12/2014,Travel and subsistence UK,Innovation Directorate,HRG UK,426504631,56.43,Not applicable,
Department for Business Innovation and Skills,Intellectual Property Office,29/12/2014,Travel and subsistence UK,Innovation Directorate,HRG UK,426504634,56.43,Not applicable,
Department for Business Innovation and Skills,Intellectual Property Office,29/12/2014,Travel and subsistence UK,International Policy Directorate,HRG UK,426581769,56.43,Not applicable,
Department for Business Innovation and Skills,Intellectual Property Office,29/12/2014,Travel and subsistence UK,International Policy Directorate,HRG UK,426352826,56.85,Not applicable,
Department for Business Innovation and Skills,Intellectual Property Office,29/12/2014,Travel and subsistence UK,Copyright and IP Enforcement Directorate,HRG UK,426286371,56.85,Not applicable,
Department for Business Innovation and Skills,Intellectual Property Office,29/12/2014,Travel and subsistence UK,Innovation Directorate,HRG UK,426572167,57.44,Not applicable,
Department for Business Innovation and Skills,Intellectual Property Office,29/12/2014,Travel and subsistence UK,Copyright and IP Enforcement Directorate,HRG UK,426484389,58.54,Not applicable,
Department for Business Innovation and Skills,Intellectual Property Office,29/12/2014,Travel and subsistence UK,Business Support Directorate,HRG UK,426481936,58.63,Not applicable,
Department for Business Innovation and Skills,Intellectual Property Office,29/12/2014,Travel and subsistence UK,Copyright and IP Enforcement Directorate,HRG UK,426259232,60.03,Not applicable,
Department for Business Innovation and Skills,Intellectual Property Office,03/12/2014,Travel and subsistence UK,Patents Directorate,Personal expenses name witheld,ER125397,60.04,Not applicable,
Department for Business Innovation and Skills,Intellectual Property Office,29/12/2014,Travel and subsistence UK,"People, Property and Services Directorate",HRG UK,426449090,60.43,Not applicable,
Department for Business Innovation and Skills,Intellectual Property Office,29/12/2014,Travel and subsistence UK,International Policy Directorate,HRG UK,426433801,60.63,Not applicable,
Department for Business Innovation and Skills,Intellectual Property Office,29/12/2014,Travel and subsistence UK,Patents Directorate,HRG UK,426345753,61.22,Not applicable,
Department for Business Innovation and Skills,Intellectual Property Office,29/12/2014,Travel and subsistence UK,Business Support Directorate,HRG UK,426275252,61.84,Not applicable,
Department for Business Innovation and Skills,Intellectual Property Office,29/12/2014,Travel and subsistence UK,Business Support Directorate,HRG UK,426275254,61.84,Not applicable,
Department for Business Innovation and Skills,Intellectual Property Office,29/12/2014,Travel and subsistence UK,Business Support Directorate,HRG UK,426433809,61.84,Not applicable,
Department for Business Innovation and Skills,Intellectual Property Office,29/12/2014,Travel and subsistence UK,Business Support Directorate,HRG UK,426480451,61.84,Not applicable,
Department for Business Innovation and Skills,Intellectual Property Office,29/12/2014,Travel and subsistence UK,Copyright and IP Enforcement Directorate,HRG UK,426411053,62.91,Not applicable,
Department for Business Innovation and Skills,Intellectual Property Office,29/12/2014,Travel and subsistence UK,International Policy Directorate,HRG UK,426484390,64.01,Not applicable,
Department for Business Innovation and Skills,Intellectual Property Office,29/12/2014,Travel and subsistence UK,International Policy Directorate,HRG UK,426572177,64.01,Not applicable,
Department for Business Innovation and Skills,Intellectual Property Office,29/12/2014,Travel and subsistence UK,Copyright and IP Enforcement Directorate,HRG UK,426572171,64.01,Not applicable,
Department for Business Innovation and Skills,Intellectual Property Office,29/12/2014,Travel and subsistence UK,Copyright and IP Enforcement Directorate,HRG UK,426316914,64.01,Not applicable,
Department for Business Innovation and Skills,Intellectual Property Office,03/12/2014,Travel and subsistence UK,"People, Property and Services Directorate",Veezu Ltd T/A Dragon Taxis (Newport),2797,64.20,Not applicable,
Department for Business Innovation and Skills,Intellectual Property Office,03/12/2014,Travel and subsistence UK,Copyright and IP Enforcement Directorate,Veezu Ltd T/A Dragon Taxis (Newport),2797,64.20,Not applicable,
Department for Business Innovation and Skills,Intellectual Property Office,29/12/2014,Travel and subsistence UK,Business Support Directorate,HRG UK,426330949,64.23,Not applicable,
Department for Business Innovation and Skills,Intellectual Property Office,29/12/2014,Travel and subsistence UK,Copyright and IP Enforcement Directorate,HRG UK,426572168,64.52,Not applicable,
Department for Business Innovation and Skills,Intellectual Property Office,29/12/2014,Travel and subsistence UK,Copyright and IP Enforcement Directorate,HRG UK,426558424,64.52,Not applicable,
Department for Business Innovation and Skills,Intellectual Property Office,29/12/2014,Travel and subsistence UK,"People, Property and Services Directorate",HRG UK,426350824,65.42,Not applicable,
Department for Business Innovation and Skills,Intellectual Property Office,03/12/2014,Travel and subsistence UK,Patents Directorate,Personal expenses name witheld,ER127177,66.40,Not applicable,
Department for Business Innovation and Skills,Intellectual Property Office,29/12/2014,Travel and subsistence UK,Copyright and IP Enforcement Directorate,HRG UK,426316895,67.01,Not applicable,
Department for Business Innovation and Skills,Intellectual Property Office,03/12/2014,Travel and subsistence UK,Innovation Directorate,Veezu Ltd T/A Dragon Taxis (Newport),2797,67.20,Not applicable,
Department for Business Innovation and Skills,Intellectual Property Office,29/12/2014,Travel and subsistence UK,International Policy Directorate,HRG UK,426424150,68.11,Not applicable,
Department for Business Innovation and Skills,Intellectual Property Office,29/12/2014,Travel and subsistence UK,Innovation Directorate,HRG UK,426403670,68.11,Not applicable,
Department for Business Innovation and Skills,Intellectual Property Office,29/12/2014,Travel and subsistence UK,International Policy Directorate,HRG UK,426423884,68.11,Not applicable,
Department for Business Innovation and Skills,Intellectual Property Office,29/12/2014,Travel and subsistence UK,International Policy Directorate,HRG UK,426458479,68.40,Not applicable,
Department for Business Innovation and Skills,Intellectual Property Office,29/12/2014,Travel and subsistence UK,Copyright and IP Enforcement Directorate,HRG UK,426411054,70.81,Not applicable,
Department for Business Innovation and Skills,Intellectual Property Office,01/12/2014,Travel and subsistence UK,Innovation Directorate,Leasedrive Velo Rental Management Ltd,RHI01281182,71.86,Not applicable,
Department for Business Innovation and Skills,Intellectual Property Office,09/12/2014,Travel and subsistence UK,International Policy Directorate,Leasedrive Velo Rental Management Ltd,RHI01285528,72.80,Not applicable,
Department for Business Innovation and Skills,Intellectual Property Office,22/12/2014,Travel and subsistence UK,Copyright and IP Enforcement Directorate,Personal expenses name witheld,ER128058,73.25,Not applicable,
Department for Business Innovation and Skills,Intellectual Property Office,29/12/2014,Travel and subsistence UK,Innovation Directorate,HRG UK,426281294,73.70,Not applicable,
Department for Business Innovation and Skills,Intellectual Property Office,29/12/2014,Travel and subsistence UK,Innovation Directorate,HRG UK,426332423,74.49,Not applicable,
Department for Business Innovation and Skills,Intellectual Property Office,16/12/2014,Travel and subsistence UK,International Policy Directorate,Leasedrive Velo Rental Management Ltd,RHI01288129,74.56,Not applicable,
Department for Business Innovation and Skills,Intellectual Property Office,10/12/2014,Travel and subsistence UK,Innovation Directorate,Personal expenses name witheld,ER127766,74.93,Not applicable,
Department for Business Innovation and Skills,Intellectual Property Office,16/12/2014,Travel and subsistence UK,Innovation Directorate,Personal expenses name witheld,ER128060,75.00,Not applicable,
Department for Business Innovation and Skills,Intellectual Property Office,05/12/2014,Travel and subsistence UK,Innovation Directorate,Leasedrive Velo Rental Management Ltd,RHI01283087,75.89,Not applicable,
Department for Business Innovation and Skills,Intellectual Property Office,18/12/2014,Travel and subsistence UK,Copyright and IP Enforcement Directorate,Leasedrive Velo Rental Management Ltd,RHI01288130,75.89,Not applicable,
Department for Business Innovation and Skills,Intellectual Property Office,04/12/2014,Travel and subsistence UK,Innovation Directorate,Leasedrive Velo Rental Management Ltd,RHI01283091,75.89,Not applicable,
Department for Business Innovation and Skills,Intellectual Property Office,11/12/2014,Travel and subsistence UK,Innovation Directorate,Leasedrive Velo Rental Management Ltd,RHI01288121,75.89,Not applicable,
Department for Business Innovation and Skills,Intellectual Property Office,23/12/2014,Travel and subsistence UK,Innovation Directorate,Leasedrive Velo Rental Management Ltd,RHI01292196,75.89,Not applicable,
Department for Business Innovation and Skills,Intellectual Property Office,29/12/2014,Travel and subsistence UK,Trade Marks Directorate,HRG UK,426403680,76.88,Not applicable,
Department for Business Innovation and Skills,Intellectual Property Office,29/12/2014,Travel and subsistence UK,Copyright and IP Enforcement Directorate,HRG UK,426289023,76.88,Not applicable,
Department for Business Innovation and Skills,Intellectual Property Office,29/12/2014,Travel and subsistence UK,Patents Directorate,HRG UK,426259242,76.88,Not applicable,
Department for Business Innovation and Skills,Intellectual Property Office,29/12/2014,Travel and subsistence UK,Patents Directorate,HRG UK,426259237,76.88,Not applicable,
Department for Business Innovation and Skills,Intellectual Property Office,29/12/2014,Travel and subsistence UK,Patents Directorate,HRG UK,426465932,76.88,Not applicable,
Department for Business Innovation and Skills,Intellectual Property Office,29/12/2014,Travel and subsistence UK,Innovation Directorate,HRG UK,426281293,77.27,Not applicable,
Department for Business Innovation and Skills,Intellectual Property Office,29/12/2014,Travel and subsistence UK,International Policy Directorate,HRG UK,426332418,77.60,Not applicable,
Department for Business Innovation and Skills,Intellectual Property Office,29/12/2014,Travel and subsistence UK,International Policy Directorate,HRG UK,426332420,77.60,Not applicable,
Department for Business Innovation and Skills,Intellectual Property Office,29/12/2014,Travel and subsistence UK,Copyright and IP Enforcement Directorate,HRG UK,426316906,78.38,Not applicable,
Department for Business Innovation and Skills,Intellectual Property Office,29/12/2014,Travel and subsistence UK,Trade Marks Directorate,HRG UK,426332429,80.58,Not applicable,
Department for Business Innovation and Skills,Intellectual Property Office,29/12/2014,Travel and subsistence UK,"People, Property and Services Directorate",HRG UK,426481951,80.58,Not applicable,
Department for Business Innovation and Skills,Intellectual Property Office,29/12/2014,Travel and subsistence UK,Business Support Directorate,HRG UK,426332425,80.58,Not applicable,
Department for Business Innovation and Skills,Intellectual Property Office,29/12/2014,Travel and subsistence UK,International Policy Directorate,HRG UK,426424151,81.17,Not applicable,
Department for Business Innovation and Skills,Intellectual Property Office,09/12/2014,Travel and subsistence UK,Copyright and IP Enforcement Directorate,Personal expenses name witheld,ER127642,82.00,Not applicable,
Department for Business Innovation and Skills,Intellectual Property Office,31/12/2014,Travel and subsistence UK,Copyright and IP Enforcement Directorate,Leasedrive Velo Rental Management Ltd,RHI01296951,82.15,Not applicable,
Department for Business Innovation and Skills,Intellectual Property Office,11/12/2014,Travel and subsistence UK,Patents Directorate,Leasedrive Velo Rental Management Ltd,RHI01288123,82.54,Not applicable,
Department for Business Innovation and Skills,Intellectual Property Office,11/12/2014,Travel and subsistence UK,Innovation Directorate,Leasedrive Velo Rental Management Ltd,RHI01288127,82.54,Not applicable,
Department for Business Innovation and Skills,Intellectual Property Office,29/12/2014,Travel and subsistence UK,International Policy Directorate,HRG UK,426332416,82.58,Not applicable,
Department for Business Innovation and Skills,Intellectual Property Office,29/12/2014,Travel and subsistence UK,Patents Directorate,HRG UK,426518504,84.16,Not applicable,
Department for Business Innovation and Skills,Intellectual Property Office,29/12/2014,Travel and subsistence UK,Innovation Directorate,HRG UK,426345750,84.16,Not applicable,
Department for Business Innovation and Skills,Intellectual Property Office,29/12/2014,Travel and subsistence UK,Trade Marks Directorate,HRG UK,426345755,84.16,Not applicable,
Department for Business Innovation and Skills,Intellectual Property Office,29/12/2014,Travel and subsistence UK,Trade Marks Directorate,HRG UK,426332428,84.16,Not applicable,
Department for Business Innovation and Skills,Intellectual Property Office,29/12/2014,Travel and subsistence UK,Trade Marks Directorate,HRG UK,426481209,84.16,Not applicable,
Department for Business Innovation and Skills,Intellectual Property Office,29/12/2014,Travel and subsistence UK,"People, Property and Services Directorate",HRG UK,426330724,84.16,Not applicable,
Department for Business Innovation and Skills,Intellectual Property Office,29/12/2014,Travel and subsistence UK,Patents Directorate,HRG UK,426449086,84.65,Not applicable,
Department for Business Innovation and Skills,Intellectual Property Office,11/12/2014,Travel and subsistence UK,Patents Directorate,Leasedrive Velo Rental Management Ltd,RHI01288120,84.94,Not applicable,
Department for Business Innovation and Skills,Intellectual Property Office,05/12/2014,Travel and subsistence UK,International Policy Directorate,Personal expenses name witheld,ER127546,85.00,Not applicable,
Department for Business Innovation and Skills,Intellectual Property Office,05/12/2014,Travel and subsistence UK,International Policy Directorate,Personal expenses name witheld,ER127526,85.00,Not applicable,
Department for Business Innovation and Skills,Intellectual Property Office,29/12/2014,Travel and subsistence UK,Innovation Directorate,HRG UK,426512268,85.26,Not applicable,
Department for Business Innovation and Skills,Intellectual Property Office,29/12/2014,Travel and subsistence UK,Copyright and IP Enforcement Directorate,HRG UK,426433807,85.86,Not applicable,
Department for Business Innovation and Skills,Intellectual Property Office,29/12/2014,Travel and subsistence UK,Innovation Directorate,HRG UK,426427114,86.36,Not applicable,
Department for Business Innovation and Skills,Intellectual Property Office,29/12/2014,Travel and subsistence UK,Innovation Directorate,HRG UK,426427123,87.35,Not applicable,
Department for Business Innovation and Skills,Intellectual Property Office,29/12/2014,Travel and subsistence UK,International Policy Directorate,HRG UK,426414103,87.35,Not applicable,
Department for Business Innovation and Skills,Intellectual Property Office,29/12/2014,Travel and subsistence UK,International Policy Directorate,HRG UK,426365019,87.35,Not applicable,
Department for Business Innovation and Skills,Intellectual Property Office,29/12/2014,Travel and subsistence UK,Innovation Directorate,HRG UK,426376526,87.35,Not applicable,
Department for Business Innovation and Skills,Intellectual Property Office,29/12/2014,Travel and subsistence UK,Innovation Directorate,HRG UK,426376527,87.35,Not applicable,
Department for Business Innovation and Skills,Intellectual Property Office,29/12/2014,Travel and subsistence UK,Innovation Directorate,HRG UK,426452994,87.35,Not applicable,
Department for Business Innovation and Skills,Intellectual Property Office,29/12/2014,Travel and subsistence UK,Innovation Directorate,HRG UK,426519427,87.35,Not applicable,
Department for Business Innovation and Skills,Intellectual Property Office,29/12/2014,Travel and subsistence UK,Innovation Directorate,HRG UK,426259233,87.35,Not applicable,
Department for Business Innovation and Skills,Intellectual Property Office,29/12/2014,Travel and subsistence UK,Copyright and IP Enforcement Directorate,HRG UK,426597202,87.35,Not applicable,
Department for Business Innovation and Skills,Intellectual Property Office,29/12/2014,Travel and subsistence UK,Copyright and IP Enforcement Directorate,HRG UK,426316892,87.35,Not applicable,
Department for Business Innovation and Skills,Intellectual Property Office,19/12/2014,Travel and subsistence UK,Innovation Directorate,Leasedrive Velo Rental Management Ltd,RHI01292198,87.44,Not applicable,
Department for Business Innovation and Skills,Intellectual Property Office,16/12/2014,Travel and subsistence UK,Innovation Directorate,Leasedrive Velo Rental Management Ltd,RHI01288125,87.44,Not applicable,
Department for Business Innovation and Skills,Intellectual Property Office,04/12/2014,Travel and subsistence UK,Innovation Directorate,Leasedrive Velo Rental Management Ltd,RHI01283090,87.44,Not applicable,
Department for Business Innovation and Skills,Intellectual Property Office,23/12/2014,Travel and subsistence UK,Innovation Directorate,Leasedrive Velo Rental Management Ltd,RHI01292193,87.44,Not applicable,
Department for Business Innovation and Skills,Intellectual Property Office,23/12/2014,Travel and subsistence UK,Innovation Directorate,Leasedrive Velo Rental Management Ltd,RHI01292197,87.46,Not applicable,
Department for Business Innovation and Skills,Intellectual Property Office,03/12/2014,Travel and subsistence UK,"People, Property and Services Directorate",Veezu Ltd T/A Dragon Taxis (Newport),2797,87.60,Not applicable,
Department for Business Innovation and Skills,Intellectual Property Office,17/12/2014,Travel and subsistence UK,Innovation Directorate,Personal expenses name witheld,ER127362,88.05,Not applicable,
Department for Business Innovation and Skills,Intellectual Property Office,03/12/2014,Travel and subsistence UK,Innovation Directorate,Veezu Ltd T/A Dragon Taxis (Newport),2797,88.20,Not applicable,
Department for Business Innovation and Skills,Intellectual Property Office,29/12/2014,Travel and subsistence UK,Copyright and IP Enforcement Directorate,HRG UK,426398461,89.14,Not applicable,
Department for Business Innovation and Skills,Intellectual Property Office,01/12/2014,Travel and subsistence UK,Trade Marks Directorate,Leasedrive Velo Rental Management Ltd,RHI01276393,90.00,Not applicable,
Department for Business Innovation and Skills,Intellectual Property Office,29/12/2014,Travel and subsistence UK,Innovation Directorate,HRG UK,426512270,90.25,Not applicable,
Department for Business Innovation and Skills,Intellectual Property Office,29/12/2014,Travel and subsistence UK,Innovation Directorate,HRG UK,426259234,91.44,Not applicable,
Department for Business Innovation and Skills,Intellectual Property Office,29/12/2014,Travel and subsistence UK,Innovation Directorate,HRG UK,426512267,91.44,Not applicable,
Department for Business Innovation and Skills,Intellectual Property Office,29/12/2014,Travel and subsistence UK,"People, Property and Services Directorate",HRG UK,426449087,91.84,Not applicable,
Department for Business Innovation and Skills,Intellectual Property Office,29/12/2014,Travel and subsistence UK,International Policy Directorate,HRG UK,426593693,91.84,Not applicable,
Department for Business Innovation and Skills,Intellectual Property Office,29/12/2014,Travel and subsistence UK,Patents Directorate,HRG UK,426403682,93.33,Not applicable,
Department for Business Innovation and Skills,Intellectual Property Office,29/12/2014,Travel and subsistence UK,Copyright and IP Enforcement Directorate,HRG UK,426345745,93.33,Not applicable,
Department for Business Innovation and Skills,Intellectual Property Office,29/12/2014,Travel and subsistence UK,Patents Directorate,HRG UK,426349076,93.33,Not applicable,
Department for Business Innovation and Skills,Intellectual Property Office,29/12/2014,Travel and subsistence UK,Copyright and IP Enforcement Directorate,HRG UK,426452996,93.84,Not applicable,
Department for Business Innovation and Skills,Intellectual Property Office,29/12/2014,Travel and subsistence UK,Copyright and IP Enforcement Directorate,HRG UK,426403681,93.84,Not applicable,
Department for Business Innovation and Skills,Intellectual Property Office,29/12/2014,Travel and subsistence UK,International Policy Directorate,HRG UK,426316894,93.84,Not applicable,
Department for Business Innovation and Skills,Intellectual Property Office,29/12/2014,Travel and subsistence UK,Copyright and IP Enforcement Directorate,HRG UK,426403669,93.84,Not applicable,
Department for Business Innovation and Skills,Intellectual Property Office,29/12/2014,Travel and subsistence UK,Copyright and IP Enforcement Directorate,HRG UK,426452992,93.84,Not applicable,
Department for Business Innovation and Skills,Intellectual Property Office,29/12/2014,Travel and subsistence UK,Copyright and IP Enforcement Directorate,HRG UK,426505208,93.84,Not applicable,
Department for Business Innovation and Skills,Intellectual Property Office,29/12/2014,Travel and subsistence UK,Copyright and IP Enforcement Directorate,HRG UK,426452995,93.84,Not applicable,
Department for Business Innovation and Skills,Intellectual Property Office,29/12/2014,Travel and subsistence UK,Copyright and IP Enforcement Directorate,HRG UK,426452993,93.84,Not applicable,
Department for Business Innovation and Skills,Intellectual Property Office,03/12/2014,Travel and subsistence UK,International Policy Directorate,Veezu Ltd T/A Dragon Taxis (Newport),2797,94.20,Not applicable,
Department for Business Innovation and Skills,Intellectual Property Office,12/12/2014,Travel and subsistence UK,International Policy Directorate,Personal expenses name witheld,ER127907,94.30,Not applicable,
Department for Business Innovation and Skills,Intellectual Property Office,29/12/2014,Travel and subsistence UK,Copyright and IP Enforcement Directorate,HRG UK,426506668,94.34,Not applicable,
Department for Business Innovation and Skills,Intellectual Property Office,29/12/2014,Travel and subsistence UK,Innovation Directorate,HRG UK,426331216,98.32,Not applicable,
Department for Business Innovation and Skills,Intellectual Property Office,29/12/2014,Travel and subsistence UK,"People, Property and Services Directorate",HRG UK,426451872,98.34,Not applicable,
Department for Business Innovation and Skills,Intellectual Property Office,29/12/2014,Travel and subsistence UK,"People, Property and Services Directorate",HRG UK,426345759,98.34,Not applicable,
Department for Business Innovation and Skills,Intellectual Property Office,23/12/2014,Travel and subsistence UK,Innovation Directorate,Personal expenses name witheld,ER128238,98.90,Not applicable,
Department for Business Innovation and Skills,Intellectual Property Office,31/12/2014,Travel and subsistence UK,Innovation Directorate,Personal expenses name witheld,ER128249,98.90,Not applicable,
Department for Business Innovation and Skills,Intellectual Property Office,29/12/2014,Travel and subsistence UK,Business Support Directorate,HRG UK,426316897,98.92,Not applicable,
Department for Business Innovation and Skills,Intellectual Property Office,29/12/2014,Travel and subsistence UK,International Policy Directorate,HRG UK,426332441,99.83,Not applicable,
Department for Business Innovation and Skills,Intellectual Property Office,29/12/2014,Travel and subsistence UK,Patents Directorate,HRG UK,426310683,99.83,Not applicable,
Department for Business Innovation and Skills,Intellectual Property Office,29/12/2014,Travel and subsistence UK,Patents Directorate,HRG UK,426591432,99.83,Not applicable,
Department for Business Innovation and Skills,Intellectual Property Office,18/12/2014,Travel and subsistence UK,Trade Marks Directorate,Personal expenses name witheld,ER128169,100.35,Not applicable,
Department for Business Innovation and Skills,Intellectual Property Office,29/12/2014,Travel and subsistence UK,Innovation Directorate,HRG UK,426512269,101.22,Not applicable,
Department for Business Innovation and Skills,Intellectual Property Office,29/12/2014,Travel and subsistence UK,Copyright and IP Enforcement Directorate,HRG UK,426572172,101.22,Not applicable,
Department for Business Innovation and Skills,Intellectual Property Office,29/12/2014,Travel and subsistence UK,"People, Property and Services Directorate",HRG UK,426518751,101.92,Not applicable,
Department for Business Innovation and Skills,Intellectual Property Office,29/12/2014,Travel and subsistence UK,"People, Property and Services Directorate",HRG UK,426518506,101.92,Not applicable,
Department for Business Innovation and Skills,Intellectual Property Office,29/12/2014,Travel and subsistence UK,International Policy Directorate,HRG UK,426572174,102.41,Not applicable,
Department for Business Innovation and Skills,Intellectual Property Office,03/12/2014,Travel and subsistence UK,Business Support Directorate,Leasedrive Velo Rental Management Ltd,RHI01270602,102.88,Not applicable,
Department for Business Innovation and Skills,Intellectual Property Office,17/12/2014,Travel and subsistence UK,Innovation Directorate,Personal expenses name witheld,ER128074,103.15,Not applicable,
Department for Business Innovation and Skills,Intellectual Property Office,16/12/2014,Travel and subsistence UK,Innovation Directorate,Personal expenses name witheld,ER128062,103.15,Not applicable,
Department for Business Innovation and Skills,Intellectual Property Office,17/12/2014,Travel and subsistence UK,Innovation Directorate,Personal expenses name witheld,ER128063,103.15,Not applicable,
Department for Business Innovation and Skills,Intellectual Property Office,29/12/2014,Travel and subsistence UK,International Policy Directorate,HRG UK,426416634,103.32,Not applicable,
Department for Business Innovation and Skills,Intellectual Property Office,17/12/2014,Travel and subsistence UK,Innovation Directorate,Personal expenses name witheld,ER128090,103.70,Not applicable,
Department for Business Innovation and Skills,Intellectual Property Office,29/12/2014,Travel and subsistence UK,Trade Marks Directorate,HRG UK,426345756,104.22,Not applicable,
Department for Business Innovation and Skills,Intellectual Property Office,29/12/2014,Travel and subsistence UK,International Policy Directorate,HRG UK,426416632,104.22,Not applicable,
Department for Business Innovation and Skills,Intellectual Property Office,29/12/2014,Travel and subsistence UK,Business Support Directorate,HRG UK,426453286,104.22,Not applicable,
Department for Business Innovation and Skills,Intellectual Property Office,29/12/2014,Travel and subsistence UK,Trade Marks Directorate,HRG UK,426481210,104.22,Not applicable,
Department for Business Innovation and Skills,Intellectual Property Office,29/12/2014,Travel and subsistence UK,Patents Directorate,HRG UK,426517506,104.22,Not applicable,
Department for Business Innovation and Skills,Intellectual Property Office,29/12/2014,Travel and subsistence UK,Trade Marks Directorate,HRG UK,426561779,104.22,Not applicable,
Department for Business Innovation and Skills,Intellectual Property Office,29/12/2014,Travel and subsistence UK,"People, Property and Services Directorate",HRG UK,426330725,104.22,Not applicable,
Department for Business Innovation and Skills,Intellectual Property Office,29/12/2014,Travel and subsistence UK,International Policy Directorate,HRG UK,426581770,104.22,Not applicable,
Department for Business Innovation and Skills,Intellectual Property Office,29/12/2014,Travel and subsistence UK,Patents Directorate,HRG UK,426275247,104.22,Not applicable,
Department for Business Innovation and Skills,Intellectual Property Office,29/12/2014,Travel and subsistence UK,Innovation Directorate,HRG UK,426504632,104.22,Not applicable,
Department for Business Innovation and Skills,Intellectual Property Office,29/12/2014,Travel and subsistence UK,Trade Marks Directorate,HRG UK,426561781,104.22,Not applicable,
Department for Business Innovation and Skills,Intellectual Property Office,29/12/2014,Travel and subsistence UK,Innovation Directorate,HRG UK,426504635,104.22,Not applicable,
Department for Business Innovation and Skills,Intellectual Property Office,29/12/2014,Travel and subsistence UK,Innovation Directorate,HRG UK,426275248,104.80,Not applicable,
Department for Business Innovation and Skills,Intellectual Property Office,29/12/2014,Travel and subsistence UK,Copyright and IP Enforcement Directorate,HRG UK,426403678,104.80,Not applicable,
Department for Business Innovation and Skills,Intellectual Property Office,29/12/2014,Travel and subsistence UK,Finance Directorate,HRG UK,426316909,106.22,Not applicable,
Department for Business Innovation and Skills,Intellectual Property Office,29/12/2014,Travel and subsistence UK,Innovation Directorate,HRG UK,426512271,106.22,Not applicable,
Department for Business Innovation and Skills,Intellectual Property Office,29/12/2014,Travel and subsistence UK,International Policy Directorate,HRG UK,426352822,106.90,Not applicable,
Department for Business Innovation and Skills,Intellectual Property Office,29/12/2014,Travel and subsistence UK,Copyright and IP Enforcement Directorate,HRG UK,426595369,106.90,Not applicable,
Department for Business Innovation and Skills,Intellectual Property Office,29/12/2014,Travel and subsistence UK,International Policy Directorate,HRG UK,426416633,106.90,Not applicable,
Department for Business Innovation and Skills,Intellectual Property Office,29/12/2014,Travel and subsistence UK,Copyright and IP Enforcement Directorate,HRG UK,426500704,107.30,Not applicable,
Department for Business Innovation and Skills,Intellectual Property Office,29/12/2014,Travel and subsistence UK,Copyright and IP Enforcement Directorate,HRG UK,426579618,107.30,Not applicable,
Department for Business Innovation and Skills,Intellectual Property Office,29/12/2014,Travel and subsistence UK,Trade Marks Directorate,HRG UK,426403672,107.81,Not applicable,
Department for Business Innovation and Skills,Intellectual Property Office,29/12/2014,Travel and subsistence UK,Trade Marks Directorate,HRG UK,426359615,107.81,Not applicable,
Department for Business Innovation and Skills,Intellectual Property Office,29/12/2014,Travel and subsistence UK,Patents Directorate,HRG UK,426484399,107.81,Not applicable,
Department for Business Innovation and Skills,Intellectual Property Office,29/12/2014,Travel and subsistence UK,Innovation Directorate,HRG UK,426332435,107.81,Not applicable,
Department for Business Innovation and Skills,Intellectual Property Office,29/12/2014,Travel and subsistence UK,Copyright and IP Enforcement Directorate,HRG UK,426484396,107.81,Not applicable,
Department for Business Innovation and Skills,Intellectual Property Office,29/12/2014,Travel and subsistence UK,Patents Directorate,HRG UK,426484401,107.81,Not applicable,
Department for Business Innovation and Skills,Intellectual Property Office,29/12/2014,Travel and subsistence UK,Business Support Directorate,HRG UK,426453285,107.81,Not applicable,
Department for Business Innovation and Skills,Intellectual Property Office,29/12/2014,Travel and subsistence UK,Trade Marks Directorate,HRG UK,426453455,107.81,Not applicable,
Department for Business Innovation and Skills,Intellectual Property Office,29/12/2014,Travel and subsistence UK,Innovation Directorate,HRG UK,426332432,107.81,Not applicable,
Department for Business Innovation and Skills,Intellectual Property Office,29/12/2014,Travel and subsistence UK,Innovation Directorate,HRG UK,426332430,107.81,Not applicable,
Department for Business Innovation and Skills,Intellectual Property Office,29/12/2014,Travel and subsistence UK,Trade Marks Directorate,HRG UK,426453453,107.81,Not applicable,
Department for Business Innovation and Skills,Intellectual Property Office,29/12/2014,Travel and subsistence UK,"People, Property and Services Directorate",HRG UK,426481950,107.81,Not applicable,
Department for Business Innovation and Skills,Intellectual Property Office,24/12/2014,Travel and subsistence UK,Innovation Directorate,Personal expenses name witheld,ER128240,108.20,Not applicable,
Department for Business Innovation and Skills,Intellectual Property Office,29/12/2014,Travel and subsistence UK,Copyright and IP Enforcement Directorate,HRG UK,426595370,109.20,Not applicable,
Department for Business Innovation and Skills,Intellectual Property Office,29/12/2014,Travel and subsistence UK,Business Support Directorate,HRG UK,426500713,109.20,Not applicable,
Department for Business Innovation and Skills,Intellectual Property Office,29/12/2014,Travel and subsistence UK,"People, Property and Services Directorate",HRG UK,426449091,109.20,Not applicable,
Department for Business Innovation and Skills,Intellectual Property Office,29/12/2014,Travel and subsistence UK,Copyright and IP Enforcement Directorate,HRG UK,426316901,109.80,Not applicable,
Department for Business Innovation and Skills,Intellectual Property Office,29/12/2014,Travel and subsistence UK,Copyright and IP Enforcement Directorate,HRG UK,426505206,109.80,Not applicable,
Department for Business Innovation and Skills,Intellectual Property Office,29/12/2014,Travel and subsistence UK,Business Support Directorate,HRG UK,426583383,109.80,Not applicable,
Department for Business Innovation and Skills,Intellectual Property Office,29/12/2014,Travel and subsistence UK,Copyright and IP Enforcement Directorate,HRG UK,426504989,109.80,Not applicable,
Department for Business Innovation and Skills,Intellectual Property Office,29/12/2014,Travel and subsistence UK,International Policy Directorate,HRG UK,426403676,109.80,Not applicable,
Department for Business Innovation and Skills,Intellectual Property Office,29/12/2014,Travel and subsistence UK,Copyright and IP Enforcement Directorate,HRG UK,426316904,109.80,Not applicable,
Department for Business Innovation and Skills,Intellectual Property Office,18/12/2014,Travel and subsistence UK,Trade Marks Directorate,Leasedrive Velo Rental Management Ltd,RHI01288128,110.57,Not applicable,
Department for Business Innovation and Skills,Intellectual Property Office,10/12/2014,Travel and subsistence UK,Copyright and IP Enforcement Directorate,Personal expenses name witheld,ER127726,110.85,Not applicable,
Department for Business Innovation and Skills,Intellectual Property Office,29/12/2014,Travel and subsistence UK,"People, Property and Services Directorate",HRG UK,426595544,112.20,Not applicable,
Department for Business Innovation and Skills,Intellectual Property Office,29/12/2014,Travel and subsistence UK,Copyright and IP Enforcement Directorate,HRG UK,426484395,112.78,Not applicable,
Department for Business Innovation and Skills,Intellectual Property Office,29/12/2014,Travel and subsistence UK,Copyright and IP Enforcement Directorate,HRG UK,426345762,112.78,Not applicable,
Department for Business Innovation and Skills,Intellectual Property Office,29/12/2014,Travel and subsistence UK,Business Support Directorate,HRG UK,426500712,112.78,Not applicable,
Department for Business Innovation and Skills,Intellectual Property Office,12/12/2014,Travel and subsistence UK,Innovation Directorate,Personal expenses name witheld,ER127946,113.15,Not applicable,
Department for Business Innovation and Skills,Intellectual Property Office,29/12/2014,Travel and subsistence UK,Business Support Directorate,HRG UK,426480091,115.18,Not applicable,
Department for Business Innovation and Skills,Intellectual Property Office,29/12/2014,Travel and subsistence UK,Business Support Directorate,HRG UK,426463777,115.18,Not applicable,
Department for Business Innovation and Skills,Intellectual Property Office,29/12/2014,Travel and subsistence UK,Business Support Directorate,HRG UK,426481940,115.18,Not applicable,
Department for Business Innovation and Skills,Intellectual Property Office,09/12/2014,Travel and subsistence UK,Patents Directorate,Personal expenses name witheld,ER127663,115.28,Not applicable,
Department for Business Innovation and Skills,Intellectual Property Office,19/12/2014,Travel and subsistence UK,Copyright and IP Enforcement Directorate,Leasedrive Velo Rental Management Ltd,RHI01292199,116.59,Not applicable,
Department for Business Innovation and Skills,Intellectual Property Office,15/12/2014,Travel and subsistence UK,Copyright and IP Enforcement Directorate,Personal expenses name witheld,ER128047,117.15,Not applicable,
Department for Business Innovation and Skills,Intellectual Property Office,29/12/2014,Travel and subsistence UK,Innovation Directorate,HRG UK,426376519,117.17,Not applicable,
Department for Business Innovation and Skills,Intellectual Property Office,18/12/2014,Travel and subsistence UK,International Policy Directorate,Personal expenses name witheld,ER127887,118.20,Not applicable,
Department for Business Innovation and Skills,Intellectual Property Office,08/12/2014,Travel and subsistence UK,International Policy Directorate,Personal expenses name witheld,ER127643,118.20,Not applicable,
Department for Business Innovation and Skills,Intellectual Property Office,29/12/2014,Travel and subsistence UK,Business Support Directorate,HRG UK,426275253,118.77,Not applicable,
Department for Business Innovation and Skills,Intellectual Property Office,29/12/2014,Travel and subsistence UK,Business Support Directorate,HRG UK,426376536,118.77,Not applicable,
Department for Business Innovation and Skills,Intellectual Property Office,29/12/2014,Travel and subsistence UK,Business Support Directorate,HRG UK,426382095,118.77,Not applicable,
Department for Business Innovation and Skills,Intellectual Property Office,29/12/2014,Travel and subsistence UK,Business Support Directorate,HRG UK,426480090,118.77,Not applicable,
Department for Business Innovation and Skills,Intellectual Property Office,29/12/2014,Travel and subsistence UK,Business Support Directorate,HRG UK,426463776,118.77,Not applicable,
Department for Business Innovation and Skills,Intellectual Property Office,29/12/2014,Travel and subsistence UK,Business Support Directorate,HRG UK,426480450,118.77,Not applicable,
Department for Business Innovation and Skills,Intellectual Property Office,29/12/2014,Travel and subsistence UK,Business Support Directorate,HRG UK,426275251,118.77,Not applicable,
Department for Business Innovation and Skills,Intellectual Property Office,29/12/2014,Travel and subsistence UK,Business Support Directorate,HRG UK,426433808,118.77,Not applicable,
Department for Business Innovation and Skills,Intellectual Property Office,18/12/2014,Travel and subsistence UK,International Policy Directorate,Personal expenses name witheld,ER127622,119.85,Not applicable,
Department for Business Innovation and Skills,Intellectual Property Office,29/12/2014,Travel and subsistence UK,Innovation Directorate,HRG UK,426427115,120.68,Not applicable,
Department for Business Innovation and Skills,Intellectual Property Office,22/12/2014,Travel and subsistence UK,Copyright and IP Enforcement Directorate,Personal expenses name witheld,ER126204,121.69,Not applicable,
Department for Business Innovation and Skills,Intellectual Property Office,16/12/2014,Travel and subsistence UK,Innovation Directorate,Leasedrive Velo Rental Management Ltd,RHI01288122,122.82,Not applicable,
Department for Business Innovation and Skills,Intellectual Property Office,01/12/2014,Travel and subsistence UK,Trade Marks Directorate,Leasedrive Velo Rental Management Ltd,RHI01276394,123.78,Not applicable,
Department for Business Innovation and Skills,Intellectual Property Office,29/12/2014,Travel and subsistence UK,Business Support Directorate,HRG UK,426452998,127.15,Not applicable,
Department for Business Innovation and Skills,Intellectual Property Office,05/12/2014,Travel and subsistence UK,Innovation Directorate,Personal expenses name witheld,ER127522,129.30,Not applicable,
Department for Business Innovation and Skills,Intellectual Property Office,29/12/2014,Travel and subsistence UK,Business Support Directorate,HRG UK,426452997,130.74,Not applicable,
Department for Business Innovation and Skills,Intellectual Property Office,10/12/2014,Travel and subsistence UK,Patents Directorate,Personal expenses name witheld,ER127711,133.70,Not applicable,
Department for Business Innovation and Skills,Intellectual Property Office,19/12/2014,Travel and subsistence UK,Patents Directorate,Personal expenses name witheld,ER128179,134.15,Not applicable,
Department for Business Innovation and Skills,Intellectual Property Office,23/12/2014,Travel and subsistence UK,"People, Property and Services Directorate",Leasedrive Velo Rental Management Ltd,RHI01290223,138.19,Not applicable,
Department for Business Innovation and Skills,Intellectual Property Office,22/12/2014,Travel and subsistence UK,Copyright and IP Enforcement Directorate,Personal expenses name witheld,ER127340,138.38,Not applicable,
Department for Business Innovation and Skills,Intellectual Property Office,29/12/2014,Travel and subsistence UK,Patents Directorate,HRG UK,426516839,141.16,Not applicable,
Department for Business Innovation and Skills,Intellectual Property Office,16/12/2014,Travel and subsistence UK,"People, Property and Services Directorate",Personal expenses name witheld,ER127727,148.60,Not applicable,
Department for Business Innovation and Skills,Intellectual Property Office,09/12/2014,Travel and subsistence UK,International Policy Directorate,Personal expenses name witheld,ER127729,148.80,Not applicable,
Department for Business Innovation and Skills,Intellectual Property Office,10/12/2014,Travel and subsistence UK,Innovation Directorate,Personal expenses name witheld,ER127805,151.24,Not applicable,
Department for Business Innovation and Skills,Intellectual Property Office,15/12/2014,Travel and subsistence UK,Copyright and IP Enforcement Directorate,Personal expenses name witheld,ER128046,157.55,Not applicable,
Department for Business Innovation and Skills,Intellectual Property Office,03/12/2014,Travel and subsistence UK,Copyright and IP Enforcement Directorate,Veezu Ltd T/A Dragon Taxis (Newport),2797,158.40,Not applicable,
Department for Business Innovation and Skills,Intellectual Property Office,05/12/2014,Travel and subsistence UK,International Policy Directorate,Personal expenses name witheld,ER127542,163.20,Not applicable,
Department for Business Innovation and Skills,Intellectual Property Office,15/12/2014,Travel and subsistence UK,Innovation Directorate,Leasedrive Velo Rental Management Ltd,RHI01288126,164.28,Not applicable,
Department for Business Innovation and Skills,Intellectual Property Office,19/12/2014,Travel and subsistence UK,Copyright and IP Enforcement Directorate,Personal expenses name witheld,ER127790,166.10,Not applicable,
Department for Business Innovation and Skills,Intellectual Property Office,29/12/2014,Travel and subsistence UK,Business Support Directorate,HRG UK,426332422,166.15,Not applicable,
Department for Business Innovation and Skills,Intellectual Property Office,09/12/2014,Travel and subsistence UK,"People, Property and Services Directorate",Clare Roach,52648,166.19,Not applicable,
Department for Business Innovation and Skills,Intellectual Property Office,16/12/2014,Travel and subsistence UK,"People, Property and Services Directorate",Personal expenses name witheld,ER126805,170.10,Not applicable,
Department for Business Innovation and Skills,Intellectual Property Office,15/12/2014,Travel and subsistence UK,Innovation Directorate,Personal expenses name witheld,ER128006,171.09,Not applicable,
Department for Business Innovation and Skills,Intellectual Property Office,04/12/2014,Travel and subsistence UK,"People, Property and Services Directorate",Leasedrive Velo Rental Management Ltd,RHI01283089,174.89,Not applicable,
Department for Business Innovation and Skills,Intellectual Property Office,22/12/2014,Travel and subsistence UK,Copyright and IP Enforcement Directorate,Personal expenses name witheld,ER128196,187.35,Not applicable,
Department for Business Innovation and Skills,Intellectual Property Office,03/12/2014,Travel and subsistence UK,International Policy Directorate,Veezu Ltd T/A Dragon Taxis (Newport),2797,195.00,Not applicable,
Department for Business Innovation and Skills,Intellectual Property Office,01/12/2014,Travel and subsistence UK,Innovation Directorate,Personal expenses name witheld,ER127239,196.39,Not applicable,
Department for Business Innovation and Skills,Intellectual Property Office,02/12/2014,Travel and subsistence UK,Innovation Directorate,Personal expenses name witheld,ER127305,197.80,Not applicable,
Department for Business Innovation and Skills,Intellectual Property Office,24/12/2014,Travel and subsistence UK,International Policy Directorate,Personal expenses name witheld,ER128242,199.00,Not applicable,
Department for Business Innovation and Skills,Intellectual Property Office,29/12/2014,Travel and subsistence UK,Patents Directorate,HRG UK,426500999,202.06,Not applicable,
Department for Business Innovation and Skills,Intellectual Property Office,29/12/2014,Travel and subsistence UK,Patents Directorate,HRG UK,426271525,202.06,Not applicable,
Department for Business Innovation and Skills,Intellectual Property Office,29/12/2014,Travel and subsistence UK,Patents Directorate,HRG UK,426259238,202.06,Not applicable,
Department for Business Innovation and Skills,Intellectual Property Office,29/12/2014,Travel and subsistence UK,Patents Directorate,HRG UK,426449088,202.54,Not applicable,
Department for Business Innovation and Skills,Intellectual Property Office,29/12/2014,Travel and subsistence UK,Business Support Directorate,HRG UK,426332444,206.04,Not applicable,
Department for Business Innovation and Skills,Intellectual Property Office,29/12/2014,Travel and subsistence UK,Copyright and IP Enforcement Directorate,HRG UK,426572173,212.01,Not applicable,
Department for Business Innovation and Skills,Intellectual Property Office,29/12/2014,Travel and subsistence UK,International Policy Directorate,HRG UK,426575261,212.01,Not applicable,
Department for Business Innovation and Skills,Intellectual Property Office,29/12/2014,Travel and subsistence UK,International Policy Directorate,HRG UK,426289022,212.01,Not applicable,
Department for Business Innovation and Skills,Intellectual Property Office,29/12/2014,Travel and subsistence UK,Trade Marks Directorate,HRG UK,426484398,212.01,Not applicable,
Department for Business Innovation and Skills,Intellectual Property Office,29/12/2014,Travel and subsistence UK,Patents Directorate,HRG UK,426502389,212.01,Not applicable,
Department for Business Innovation and Skills,Intellectual Property Office,29/12/2014,Travel and subsistence UK,Copyright and IP Enforcement Directorate,HRG UK,426595545,212.01,Not applicable,
Department for Business Innovation and Skills,Intellectual Property Office,29/12/2014,Travel and subsistence UK,"People, Property and Services Directorate",HRG UK,426359614,212.01,Not applicable,
Department for Business Innovation and Skills,Intellectual Property Office,29/12/2014,Travel and subsistence UK,Patents Directorate,HRG UK,426455930,212.01,Not applicable,
Department for Business Innovation and Skills,Intellectual Property Office,29/12/2014,Travel and subsistence UK,Business Support Directorate,HRG UK,426345752,212.01,Not applicable,
Department for Business Innovation and Skills,Intellectual Property Office,29/12/2014,Travel and subsistence UK,International Policy Directorate,HRG UK,426345757,212.01,Not applicable,
Department for Business Innovation and Skills,Intellectual Property Office,29/12/2014,Travel and subsistence UK,Business Support Directorate,HRG UK,426332421,212.01,Not applicable,
Department for Business Innovation and Skills,Intellectual Property Office,29/12/2014,Travel and subsistence UK,Patents Directorate,HRG UK,426503676,212.01,Not applicable,
Department for Business Innovation and Skills,Intellectual Property Office,29/12/2014,Travel and subsistence UK,Innovation Directorate,HRG UK,426332437,212.01,Not applicable,
Department for Business Innovation and Skills,Intellectual Property Office,29/12/2014,Travel and subsistence UK,"People, Property and Services Directorate",HRG UK,426561772,212.01,Not applicable,
Department for Business Innovation and Skills,Intellectual Property Office,29/12/2014,Travel and subsistence UK,Patents Directorate,HRG UK,426259244,212.01,Not applicable,
Department for Business Innovation and Skills,Intellectual Property Office,29/12/2014,Travel and subsistence UK,"People, Property and Services Directorate",HRG UK,426411052,212.01,Not applicable,
Department for Business Innovation and Skills,Intellectual Property Office,29/12/2014,Travel and subsistence UK,International Policy Directorate,HRG UK,426481949,212.01,Not applicable,
Department for Business Innovation and Skills,Intellectual Property Office,29/12/2014,Travel and subsistence UK,International Policy Directorate,HRG UK,426481948,212.01,Not applicable,
Department for Business Innovation and Skills,Intellectual Property Office,29/12/2014,Travel and subsistence UK,Finance Directorate,HRG UK,426353498,212.01,Not applicable,
Department for Business Innovation and Skills,Intellectual Property Office,29/12/2014,Travel and subsistence UK,Patents Directorate,HRG UK,426455929,212.01,Not applicable,
Department for Business Innovation and Skills,Intellectual Property Office,29/12/2014,Travel and subsistence UK,International Policy Directorate,HRG UK,426481947,212.01,Not applicable,
Department for Business Innovation and Skills,Intellectual Property Office,29/12/2014,Travel and subsistence UK,International Policy Directorate,HRG UK,426414102,212.01,Not applicable,
Department for Business Innovation and Skills,Intellectual Property Office,29/12/2014,Travel and subsistence UK,International Policy Directorate,HRG UK,426289024,212.01,Not applicable,
Department for Business Innovation and Skills,Intellectual Property Office,29/12/2014,Travel and subsistence UK,"People, Property and Services Directorate",HRG UK,426427116,212.01,Not applicable,
Department for Business Innovation and Skills,Intellectual Property Office,29/12/2014,Travel and subsistence UK,"People, Property and Services Directorate",HRG UK,426376524,212.42,Not applicable,
Department for Business Innovation and Skills,Intellectual Property Office,29/12/2014,Travel and subsistence UK,"People, Property and Services Directorate",HRG UK,426376525,212.42,Not applicable,
Department for Business Innovation and Skills,Intellectual Property Office,29/12/2014,Travel and subsistence UK,"People, Property and Services Directorate",HRG UK,426332442,212.52,Not applicable,
Department for Business Innovation and Skills,Intellectual Property Office,29/12/2014,Travel and subsistence UK,"People, Property and Services Directorate",HRG UK,426332443,212.52,Not applicable,
Department for Business Innovation and Skills,Intellectual Property Office,29/12/2014,Travel and subsistence UK,Business Support Directorate,HRG UK,426376535,213.62,Not applicable,
Department for Business Innovation and Skills,Intellectual Property Office,12/12/2014,Travel and subsistence UK,Innovation Directorate,Personal expenses name witheld,ER127909,214.15,Not applicable,
Department for Business Innovation and Skills,Intellectual Property Office,29/12/2014,Travel and subsistence UK,Innovation Directorate,HRG UK,426297580,216.01,Not applicable,
Department for Business Innovation and Skills,Intellectual Property Office,29/12/2014,Travel and subsistence UK,Finance Directorate,HRG UK,426500703,216.01,Not applicable,
Department for Business Innovation and Skills,Intellectual Property Office,29/12/2014,Travel and subsistence UK,Innovation Directorate,HRG UK,426316893,216.01,Not applicable,
Department for Business Innovation and Skills,Intellectual Property Office,29/12/2014,Travel and subsistence UK,Innovation Directorate,HRG UK,426332438,216.01,Not applicable,
Department for Business Innovation and Skills,Intellectual Property Office,29/12/2014,Travel and subsistence UK,International Policy Directorate,HRG UK,426579620,216.01,Not applicable,
Department for Business Innovation and Skills,Intellectual Property Office,02/12/2014,Travel and subsistence UK,Innovation Directorate,Personal expenses name witheld,ER127238,217.80,Not applicable,
Department for Business Innovation and Skills,Intellectual Property Office,03/12/2014,Travel and subsistence UK,Innovation Directorate,Personal expenses name witheld,ER127304,220.76,Not applicable,
Department for Business Innovation and Skills,Intellectual Property Office,29/12/2014,Travel and subsistence UK,Finance Directorate,HRG UK,426545507,221.99,Not applicable,
Department for Business Innovation and Skills,Intellectual Property Office,29/12/2014,Travel and subsistence UK,"People, Property and Services Directorate",HRG UK,426465933,221.99,Not applicable,
Department for Business Innovation and Skills,Intellectual Property Office,29/12/2014,Travel and subsistence UK,Patents Directorate,HRG UK,426316896,221.99,Not applicable,
Department for Business Innovation and Skills,Intellectual Property Office,29/12/2014,Travel and subsistence UK,Finance Directorate,HRG UK,426545390,221.99,Not applicable,
Department for Business Innovation and Skills,Intellectual Property Office,29/12/2014,Travel and subsistence UK,Copyright and IP Enforcement Directorate,HRG UK,426464599,221.99,Not applicable,
Department for Business Innovation and Skills,Intellectual Property Office,29/12/2014,Travel and subsistence UK,Copyright and IP Enforcement Directorate,HRG UK,426261225,221.99,Not applicable,
Department for Business Innovation and Skills,Intellectual Property Office,29/12/2014,Travel and subsistence UK,Copyright and IP Enforcement Directorate,HRG UK,426542660,221.99,Not applicable,
Department for Business Innovation and Skills,Intellectual Property Office,29/12/2014,Travel and subsistence UK,Patents Directorate,HRG UK,426353255,221.99,Not applicable,
Department for Business Innovation and Skills,Intellectual Property Office,29/12/2014,Travel and subsistence UK,Copyright and IP Enforcement Directorate,HRG UK,426572176,221.99,Not applicable,
Department for Business Innovation and Skills,Intellectual Property Office,29/12/2014,Travel and subsistence UK,International Policy Directorate,HRG UK,426316899,221.99,Not applicable,
Department for Business Innovation and Skills,Intellectual Property Office,29/12/2014,Travel and subsistence UK,Finance Directorate,HRG UK,426403674,221.99,Not applicable,
Department for Business Innovation and Skills,Intellectual Property Office,29/12/2014,Travel and subsistence UK,Innovation Directorate,HRG UK,426399840,222.50,Not applicable,
Department for Business Innovation and Skills,Intellectual Property Office,29/12/2014,Travel and subsistence UK,Copyright and IP Enforcement Directorate,HRG UK,426561782,222.50,Not applicable,
Department for Business Innovation and Skills,Intellectual Property Office,29/12/2014,Travel and subsistence UK,International Policy Directorate,HRG UK,426449089,222.50,Not applicable,
Department for Business Innovation and Skills,Intellectual Property Office,29/12/2014,Travel and subsistence UK,"People, Property and Services Directorate",HRG UK,426595540,226.98,Not applicable,
Department for Business Innovation and Skills,Intellectual Property Office,01/12/2014,Travel and subsistence UK,Innovation Directorate,Leasedrive Velo Rental Management Ltd,RHI01279416,229.90,Not applicable,
Department for Business Innovation and Skills,Intellectual Property Office,29/12/2014,Travel and subsistence UK,"People, Property and Services Directorate",HRG UK,426485734,233.95,Not applicable,
Department for Business Innovation and Skills,Intellectual Property Office,11/12/2014,Travel and subsistence UK,"People, Property and Services Directorate",Personal expenses name witheld,ER127157,236.90,Not applicable,
Department for Business Innovation and Skills,Intellectual Property Office,12/12/2014,Travel and subsistence UK,"People, Property and Services Directorate",Personal expenses name witheld,ER126243,239.50,Not applicable,
Department for Business Innovation and Skills,Intellectual Property Office,29/12/2014,Travel and subsistence UK,Business Support Directorate,HRG UK,426561774,257.90,Not applicable,
Department for Business Innovation and Skills,Intellectual Property Office,29/12/2014,Travel and subsistence UK,Business Support Directorate,HRG UK,426433810,257.90,Not applicable,
Department for Business Innovation and Skills,Intellectual Property Office,29/12/2014,Travel and subsistence UK,Business Support Directorate,HRG UK,426561775,257.90,Not applicable,
Department for Business Innovation and Skills,Intellectual Property Office,09/12/2014,Travel and subsistence UK,Copyright and IP Enforcement Directorate,Personal expenses name witheld,ER127665,260.94,Not applicable,
Department for Business Innovation and Skills,Intellectual Property Office,02/12/2014,Travel and subsistence UK,IMPROVE Project,Personal expenses name witheld,ER126917,262.10,Not applicable,
Department for Business Innovation and Skills,Intellectual Property Office,05/12/2014,Travel and subsistence UK,Innovation Directorate,Personal expenses name witheld,ER127502,263.87,Not applicable,
Department for Business Innovation and Skills,Intellectual Property Office,02/12/2014,Travel and subsistence UK,Innovation Directorate,Personal expenses name witheld,ER127322,270.05,Not applicable,
Department for Business Innovation and Skills,Intellectual Property Office,31/12/2014,Travel and subsistence UK,Copyright and IP Enforcement Directorate,Personal expenses name witheld,ER128272,270.50,Not applicable,
Department for Business Innovation and Skills,Intellectual Property Office,09/12/2014,Travel and subsistence UK,Innovation Directorate,Personal expenses name witheld,ER127503,273.62,Not applicable,
Department for Business Innovation and Skills,Intellectual Property Office,17/12/2014,Travel and subsistence UK,Trade Marks Directorate,Cronin AM,52681,274.61,Not applicable,
Department for Business Innovation and Skills,Intellectual Property Office,09/12/2014,Travel and subsistence UK,Trade Marks Directorate,Cronin AM,52651,278.39,Not applicable,
Department for Business Innovation and Skills,Intellectual Property Office,09/12/2014,Travel and subsistence UK,"People, Property and Services Directorate",Personal expenses name witheld,ER127708,280.80,Not applicable,
Department for Business Innovation and Skills,Intellectual Property Office,23/12/2014,Travel and subsistence UK,Copyright and IP Enforcement Directorate,Personal expenses name witheld,ER128184,282.00,Not applicable,
Department for Business Innovation and Skills,Intellectual Property Office,18/12/2014,Travel and subsistence UK,Trade Marks Directorate,Gavin Terry,52682,305.09,Not applicable,
Department for Business Innovation and Skills,Intellectual Property Office,08/12/2014,Travel and subsistence UK,Innovation Directorate,Personal expenses name witheld,ER127482,341.55,Not applicable,
Department for Business Innovation and Skills,Intellectual Property Office,19/12/2014,Travel and subsistence UK,International Policy Directorate,Personal expenses name witheld,ER128178,360.65,Not applicable,
Department for Business Innovation and Skills,Intellectual Property Office,10/12/2014,Travel and subsistence UK,Business Support Directorate,Personal expenses name witheld,ER127788,364.05,Not applicable,
Department for Business Innovation and Skills,Intellectual Property Office,01/12/2014,Travel and subsistence UK,Innovation Directorate,Leasedrive Velo Rental Management Ltd,RHI01279415,375.41,Not applicable,
Department for Business Innovation and Skills,Intellectual Property Office,16/12/2014,Travel and subsistence UK,Innovation Directorate,Personal expenses name witheld,ER127707,381.70,Not applicable,
Department for Business Innovation and Skills,Intellectual Property Office,03/12/2014,Travel and subsistence UK,Trade Marks Directorate,Personal expenses name witheld,ER127379,400.35,Not applicable,
Department for Business Innovation and Skills,Intellectual Property Office,03/12/2014,Travel and subsistence UK,Copyright and IP Enforcement Directorate,Personal expenses name witheld,ER127123,401.40,Not applicable,
Department for Business Innovation and Skills,Intellectual Property Office,19/12/2014,Travel and subsistence UK,Trade Marks Directorate,Gavin Terry,52687,428.70,Not applicable,
Department for Business Innovation and Skills,Intellectual Property Office,23/12/2014,Travel and subsistence UK,Business Support Directorate,Personal expenses name witheld,ER128244,484.39,Not applicable,
Department for Business Innovation and Skills,Intellectual Property Office,15/12/2014,Travel and subsistence UK,Innovation Directorate,Leasedrive Velo Rental Management Ltd,RHI01288124,502.99,Not applicable,
Department for Business Innovation and Skills,Intellectual Property Office,11/12/2014,Travel and subsistence UK,Business Support Directorate,Personal expenses name witheld,ER127846,630.76,Not applicable,
Department for Business Innovation and Skills,Intellectual Property Office,03/12/2014,Travel and subsistence UK,"People, Property and Services Directorate",Personal expenses name witheld,ER127366,680.15,Not applicable,
Department for Business Innovation and Skills,Intellectual Property Office,01/12/2014,Travel and subsistence UK,Innovation Directorate,Personal expenses name witheld,ER127301,704.20,Not applicable,
Department for Business Innovation and Skills,Intellectual Property Office,08/12/2014,Travel and subsistence UK,Innovation Directorate,Personal expenses name witheld,ER127524,833.02,Not applicable,
Department for Business Innovation and Skills,Intellectual Property Office,03/12/2014,Travel and subsistence UK,Copyright and IP Enforcement Directorate,Personal expenses name witheld,ER127342,885.33,Not applicable,
Department for Business Innovation and Skills,Intellectual Property Office,17/12/2014,Travel and subsistence UK,Innovation Directorate,Personal expenses name witheld,ER128075,1317.27,Not applicable,
Department for Business Innovation and Skills,Intellectual Property Office,31/12/2014,Travel and subsistence UK,Copyright and IP Enforcement Directorate,Personal expenses name witheld,ER112023,2527.02,Not applicable,
Department for Business Innovation and Skills,Intellectual Property Office,29/12/2014,Travel and subsistence Overseas,Central Support,HRG UK,689057969,-935.33,Not applicable,
Department for Business Innovation and Skills,Intellectual Property Office,29/12/2014,Travel and subsistence Overseas,Patents Directorate,HRG UK,426508728,-181.09,Not applicable,
Department for Business Innovation and Skills,Intellectual Property Office,29/12/2014,Travel and subsistence Overseas,Patents Directorate,HRG UK,426508729,-5.80,Not applicable,
Department for Business Innovation and Skills,Intellectual Property Office,29/12/2014,Travel and subsistence Overseas,International Policy Directorate,HRG UK,426343547,2.57,Not applicable,
Department for Business Innovation and Skills,Intellectual Property Office,29/12/2014,Travel and subsistence Overseas,Business Support Directorate,HRG UK,426422075,2.57,Not applicable,
Department for Business Innovation and Skills,Intellectual Property Office,29/12/2014,Travel and subsistence Overseas,International Policy Directorate,HRG UK,426329020,2.57,Not applicable,
Department for Business Innovation and Skills,Intellectual Property Office,29/12/2014,Travel and subsistence Overseas,Trade Marks Directorate,HRG UK,426262252,2.57,Not applicable,
Department for Business Innovation and Skills,Intellectual Property Office,29/12/2014,Travel and subsistence Overseas,Patents Directorate,HRG UK,426513931,2.57,Not applicable,
Department for Business Innovation and Skills,Intellectual Property Office,29/12/2014,Travel and subsistence Overseas,Copyright and IP Enforcement Directorate,HRG UK,426448602,2.57,Not applicable,
Department for Business Innovation and Skills,Intellectual Property Office,29/12/2014,Travel and subsistence Overseas,International Policy Directorate,HRG UK,426572833,2.57,Not applicable,
Department for Business Innovation and Skills,Intellectual Property Office,29/12/2014,Travel and subsistence Overseas,International Policy Directorate,HRG UK,426328260,2.57,Not applicable,
Department for Business Innovation and Skills,Intellectual Property Office,29/12/2014,Travel and subsistence Overseas,Copyright and IP Enforcement Directorate,HRG UK,426343678,2.57,Not applicable,
Department for Business Innovation and Skills,Intellectual Property Office,29/12/2014,Travel and subsistence Overseas,International Policy Directorate,HRG UK,426478109,2.57,Not applicable,
Department for Business Innovation and Skills,Intellectual Property Office,29/12/2014,Travel and subsistence Overseas,International Policy Directorate,HRG UK,426362029,2.57,Not applicable,
Department for Business Innovation and Skills,Intellectual Property Office,29/12/2014,Travel and subsistence Overseas,International Policy Directorate,HRG UK,426362361,2.57,Not applicable,
Department for Business Innovation and Skills,Intellectual Property Office,29/12/2014,Travel and subsistence Overseas,Innovation Directorate,HRG UK,426478198,2.57,Not applicable,
Department for Business Innovation and Skills,Intellectual Property Office,29/12/2014,Travel and subsistence Overseas,Trade Marks Directorate,HRG UK,426395571,2.57,Not applicable,
Department for Business Innovation and Skills,Intellectual Property Office,29/12/2014,Travel and subsistence Overseas,International Policy Directorate,HRG UK,426362017,2.57,Not applicable,
Department for Business Innovation and Skills,Intellectual Property Office,29/12/2014,Travel and subsistence Overseas,Finance Directorate,HRG UK,426362421,2.57,Not applicable,
Department for Business Innovation and Skills,Intellectual Property Office,29/12/2014,Travel and subsistence Overseas,International Policy Directorate,HRG UK,426328258,2.57,Not applicable,
Department for Business Innovation and Skills,Intellectual Property Office,29/12/2014,Travel and subsistence Overseas,International Policy Directorate,HRG UK,426344352,2.57,Not applicable,
Department for Business Innovation and Skills,Intellectual Property Office,29/12/2014,Travel and subsistence Overseas,Copyright and IP Enforcement Directorate,HRG UK,426294417,2.57,Not applicable,
Department for Business Innovation and Skills,Intellectual Property Office,29/12/2014,Travel and subsistence Overseas,Patents Directorate,HRG UK,426276328,2.57,Not applicable,
Department for Business Innovation and Skills,Intellectual Property Office,29/12/2014,Travel and subsistence Overseas,Copyright and IP Enforcement Directorate,HRG UK,426343689,2.57,Not applicable,
Department for Business Innovation and Skills,Intellectual Property Office,29/12/2014,Travel and subsistence Overseas,Copyright and IP Enforcement Directorate,HRG UK,426377259,2.57,Not applicable,
Department for Business Innovation and Skills,Intellectual Property Office,29/12/2014,Travel and subsistence Overseas,Copyright and IP Enforcement Directorate,HRG UK,426343773,2.57,Not applicable,
Department for Business Innovation and Skills,Intellectual Property Office,29/12/2014,Travel and subsistence Overseas,Copyright and IP Enforcement Directorate,HRG UK,426343716,2.57,Not applicable,
Department for Business Innovation and Skills,Intellectual Property Office,29/12/2014,Travel and subsistence Overseas,International Policy Directorate,HRG UK,426327787,2.57,Not applicable,
Department for Business Innovation and Skills,Intellectual Property Office,29/12/2014,Travel and subsistence Overseas,Copyright and IP Enforcement Directorate,HRG UK,426343746,2.57,Not applicable,
Department for Business Innovation and Skills,Intellectual Property Office,29/12/2014,Travel and subsistence Overseas,Copyright and IP Enforcement Directorate,HRG UK,426343763,2.57,Not applicable,
Department for Business Innovation and Skills,Intellectual Property Office,29/12/2014,Travel and subsistence Overseas,International Policy Directorate,HRG UK,426343931,2.57,Not applicable,
Department for Business Innovation and Skills,Intellectual Property Office,29/12/2014,Travel and subsistence Overseas,Change Program,HRG UK,426422100,2.57,Not applicable,
Department for Business Innovation and Skills,Intellectual Property Office,29/12/2014,Travel and subsistence Overseas,Copyright and IP Enforcement Directorate,HRG UK,426343703,2.57,Not applicable,
Department for Business Innovation and Skills,Intellectual Property Office,29/12/2014,Travel and subsistence Overseas,Trade Marks Directorate,HRG UK,426462929,2.57,Not applicable,
Department for Business Innovation and Skills,Intellectual Property Office,29/12/2014,Travel and subsistence Overseas,Copyright and IP Enforcement Directorate,HRG UK,426376876,4.11,Not applicable,
Department for Business Innovation and Skills,Intellectual Property Office,29/12/2014,Travel and subsistence Overseas,Copyright and IP Enforcement Directorate,HRG UK,426343382,4.11,Not applicable,
Department for Business Innovation and Skills,Intellectual Property Office,29/12/2014,Travel and subsistence Overseas,International Policy Directorate,HRG UK,426498099,4.11,Not applicable,
Department for Business Innovation and Skills,Intellectual Property Office,29/12/2014,Travel and subsistence Overseas,Finance Directorate,HRG UK,426498104,4.11,Not applicable,
Department for Business Innovation and Skills,Intellectual Property Office,29/12/2014,Travel and subsistence Overseas,International Policy Directorate,HRG UK,426343381,4.11,Not applicable,
Department for Business Innovation and Skills,Intellectual Property Office,29/12/2014,Travel and subsistence Overseas,International Policy Directorate,HRG UK,426261453,4.11,Not applicable,
Department for Business Innovation and Skills,Intellectual Property Office,29/12/2014,Travel and subsistence Overseas,International Policy Directorate,HRG UK,426498103,4.11,Not applicable,
Department for Business Innovation and Skills,Intellectual Property Office,29/12/2014,Travel and subsistence Overseas,International Policy Directorate,HRG UK,426327932,5.14,Not applicable,
Department for Business Innovation and Skills,Intellectual Property Office,29/12/2014,Travel and subsistence Overseas,International Policy Directorate,HRG UK,426328380,5.65,Not applicable,
Department for Business Innovation and Skills,Intellectual Property Office,18/12/2014,Travel and subsistence Overseas,Trade Marks Directorate,Personal expenses name witheld,ER128174,8.05,Not applicable,
Department for Business Innovation and Skills,Intellectual Property Office,29/12/2014,Travel and subsistence Overseas,Patents Directorate,HRG UK,426377163,8.22,Not applicable,
Department for Business Innovation and Skills,Intellectual Property Office,29/12/2014,Travel and subsistence Overseas,Patents Directorate,HRG UK,426377162,8.22,Not applicable,
Department for Business Innovation and Skills,Intellectual Property Office,29/12/2014,Travel and subsistence Overseas,Copyright and IP Enforcement Directorate,HRG UK,426367756,10.93,Not applicable,
Department for Business Innovation and Skills,Intellectual Property Office,29/12/2014,Travel and subsistence Overseas,Patents Directorate,HRG UK,426259241,23.34,Not applicable,
Department for Business Innovation and Skills,Intellectual Property Office,29/12/2014,Travel and subsistence Overseas,International Policy Directorate,HRG UK,426383715,33.40,Not applicable,
Department for Business Innovation and Skills,Intellectual Property Office,29/12/2014,Travel and subsistence Overseas,International Policy Directorate,HRG UK,426317080,38.87,Not applicable,
Department for Business Innovation and Skills,Intellectual Property Office,29/12/2014,Travel and subsistence Overseas,Patents Directorate,HRG UK,426376522,45.17,Not applicable,
Department for Business Innovation and Skills,Intellectual Property Office,04/12/2014,Travel and subsistence Overseas,Innovation Directorate,Personal expenses name witheld,ER127420,50.88,Not applicable,
Department for Business Innovation and Skills,Intellectual Property Office,01/12/2014,Travel and subsistence Overseas,Patents Directorate,Personal expenses name witheld,ER127277,52.87,Not applicable,
Department for Business Innovation and Skills,Intellectual Property Office,29/12/2014,Travel and subsistence Overseas,Central Support,HRG UK,426593875,60.00,Not applicable,
Department for Business Innovation and Skills,Intellectual Property Office,29/12/2014,Travel and subsistence Overseas,Copyright and IP Enforcement Directorate,HRG UK,426269912,66.56,Not applicable,
Department for Business Innovation and Skills,Intellectual Property Office,29/12/2014,Travel and subsistence Overseas,Copyright and IP Enforcement Directorate,HRG UK,426269825,66.56,Not applicable,
Department for Business Innovation and Skills,Intellectual Property Office,29/12/2014,Travel and subsistence Overseas,Patents Directorate,HRG UK,426376523,76.78,Not applicable,
Department for Business Innovation and Skills,Intellectual Property Office,29/12/2014,Travel and subsistence Overseas,Finance Directorate,HRG UK,426384306,77.01,Not applicable,
Department for Business Innovation and Skills,Intellectual Property Office,29/12/2014,Travel and subsistence Overseas,Copyright and IP Enforcement Directorate,HRG UK,RLFEES,78.33,Not applicable,
Department for Business Innovation and Skills,Intellectual Property Office,29/12/2014,Travel and subsistence Overseas,International Policy Directorate,HRG UK,426353807,78.48,Not applicable,
Department for Business Innovation and Skills,Intellectual Property Office,31/12/2014,Travel and subsistence Overseas,Copyright and IP Enforcement Directorate,Personal expenses name witheld,ER124941,81.78,Not applicable,
Department for Business Innovation and Skills,Intellectual Property Office,29/12/2014,Travel and subsistence Overseas,Patents Directorate,HRG UK,426376521,85.25,Not applicable,
Department for Business Innovation and Skills,Intellectual Property Office,29/12/2014,Travel and subsistence Overseas,Patents Directorate,HRG UK,426406143,87.35,Not applicable,
Department for Business Innovation and Skills,Intellectual Property Office,29/12/2014,Travel and subsistence Overseas,International Policy Directorate,HRG UK,426273024,88.16,Not applicable,
Department for Business Innovation and Skills,Intellectual Property Office,29/12/2014,Travel and subsistence Overseas,International Policy Directorate,HRG UK,426583889,104.55,Not applicable,
Department for Business Innovation and Skills,Intellectual Property Office,29/12/2014,Travel and subsistence Overseas,International Policy Directorate,HRG UK,426387836,106.38,Not applicable,
Department for Business Innovation and Skills,Intellectual Property Office,29/12/2014,Travel and subsistence Overseas,International Policy Directorate,HRG UK,426304732,125.03,Not applicable,
Department for Business Innovation and Skills,Intellectual Property Office,05/12/2014,Travel and subsistence Overseas,International Policy Directorate,Personal expenses name witheld,52638,134.88,Not applicable,
Department for Business Innovation and Skills,Intellectual Property Office,03/12/2014,Travel and subsistence Overseas,Trade Marks Directorate,Veezu Ltd T/A Dragon Taxis (Newport),2797,140.40,Not applicable,
Department for Business Innovation and Skills,Intellectual Property Office,29/12/2014,Travel and subsistence Overseas,Patents Directorate,HRG UK,426351924,141.96,Not applicable,
Department for Business Innovation and Skills,Intellectual Property Office,03/12/2014,Travel and subsistence Overseas,Trade Marks Directorate,Veezu Ltd T/A Dragon Taxis (Newport),2797,144.00,Not applicable,
Department for Business Innovation and Skills,Intellectual Property Office,29/12/2014,Travel and subsistence Overseas,Patents Directorate,HRG UK,426270350,152.41,Not applicable,
Department for Business Innovation and Skills,Intellectual Property Office,29/12/2014,Travel and subsistence Overseas,International Policy Directorate,HRG UK,426285789,168.50,Not applicable,
Department for Business Innovation and Skills,Intellectual Property Office,29/12/2014,Travel and subsistence Overseas,Copyright and IP Enforcement Directorate,HRG UK,426270208,174.06,Not applicable,
Department for Business Innovation and Skills,Intellectual Property Office,29/12/2014,Travel and subsistence Overseas,Finance Directorate,HRG UK,426387825,188.22,Not applicable,
Department for Business Innovation and Skills,Intellectual Property Office,29/12/2014,Travel and subsistence Overseas,International Policy Directorate,HRG UK,426341059,188.22,Not applicable,
Department for Business Innovation and Skills,Intellectual Property Office,29/12/2014,Travel and subsistence Overseas,Copyright and IP Enforcement Directorate,HRG UK,426269300,188.87,Not applicable,
Department for Business Innovation and Skills,Intellectual Property Office,29/12/2014,Travel and subsistence Overseas,Copyright and IP Enforcement Directorate,HRG UK,426269858,188.87,Not applicable,
Department for Business Innovation and Skills,Intellectual Property Office,29/12/2014,Travel and subsistence Overseas,International Policy Directorate,HRG UK,426353813,191.28,Not applicable,
Department for Business Innovation and Skills,Intellectual Property Office,29/12/2014,Travel and subsistence Overseas,Copyright and IP Enforcement Directorate,HRG UK,426282098,192.72,Not applicable,
Department for Business Innovation and Skills,Intellectual Property Office,29/12/2014,Travel and subsistence Overseas,Copyright and IP Enforcement Directorate,HRG UK,426341055,198.44,Not applicable,
Department for Business Innovation and Skills,Intellectual Property Office,29/12/2014,Travel and subsistence Overseas,Finance Directorate,HRG UK,426580186,199.46,Not applicable,
Department for Business Innovation and Skills,Intellectual Property Office,29/12/2014,Travel and subsistence Overseas,International Policy Directorate,HRG UK,426580191,199.46,Not applicable,
Department for Business Innovation and Skills,Intellectual Property Office,29/12/2014,Travel and subsistence Overseas,International Policy Directorate,HRG UK,426582395,199.46,Not applicable,
Department for Business Innovation and Skills,Intellectual Property Office,29/12/2014,Travel and subsistence Overseas,Patents Directorate,HRG UK,426259240,202.06,Not applicable,
Department for Business Innovation and Skills,Intellectual Property Office,16/12/2014,Travel and subsistence Overseas,Copyright and IP Enforcement Directorate,Personal expenses name witheld,ER128064,203.82,Not applicable,
Department for Business Innovation and Skills,Intellectual Property Office,29/12/2014,Travel and subsistence Overseas,Patents Directorate,HRG UK,426399624,205.57,Not applicable,
Department for Business Innovation and Skills,Intellectual Property Office,29/12/2014,Travel and subsistence Overseas,Patents Directorate,HRG UK,426596032,206.00,Not applicable,
Department for Business Innovation and Skills,Intellectual Property Office,19/12/2014,Travel and subsistence Overseas,Copyright and IP Enforcement Directorate,Personal expenses name witheld,ER128149,212.56,Not applicable,
Department for Business Innovation and Skills,Intellectual Property Office,03/12/2014,Travel and subsistence Overseas,Trade Marks Directorate,Veezu Ltd T/A Dragon Taxis (Newport),2797,244.80,Not applicable,
Department for Business Innovation and Skills,Intellectual Property Office,16/12/2014,Travel and subsistence Overseas,Innovation Directorate,Personal expenses name witheld,ER127905,247.05,Not applicable,
Department for Business Innovation and Skills,Intellectual Property Office,18/12/2014,Travel and subsistence Overseas,Patents Directorate,Personal expenses name witheld,ER127399,252.33,Not applicable,
Department for Business Innovation and Skills,Intellectual Property Office,29/12/2014,Travel and subsistence Overseas,International Policy Directorate,HRG UK,426298521,259.81,Not applicable,
Department for Business Innovation and Skills,Intellectual Property Office,12/12/2014,Travel and subsistence Overseas,Trade Marks Directorate,Personal expenses name witheld,ER127925,261.00,Not applicable,
Department for Business Innovation and Skills,Intellectual Property Office,11/12/2014,Travel and subsistence Overseas,Innovation Directorate,Personal expenses name witheld,ER127885,262.02,Not applicable,
Department for Business Innovation and Skills,Intellectual Property Office,29/12/2014,Travel and subsistence Overseas,Patents Directorate,HRG UK,426364744,276.34,Not applicable,
Department for Business Innovation and Skills,Intellectual Property Office,29/12/2014,Travel and subsistence Overseas,Patents Directorate,HRG UK,426365124,276.34,Not applicable,
Department for Business Innovation and Skills,Intellectual Property Office,29/12/2014,Travel and subsistence Overseas,Central Support,HRG UK,426353812,284.36,Not applicable,
Department for Business Innovation and Skills,Intellectual Property Office,10/12/2014,Travel and subsistence Overseas,Copyright and IP Enforcement Directorate,Personal expenses name witheld,ER127710,287.11,Not applicable,
Department for Business Innovation and Skills,Intellectual Property Office,22/12/2014,Travel and subsistence Overseas,International Policy Directorate,Personal expenses name witheld,ER128092,289.89,Not applicable,
Department for Business Innovation and Skills,Intellectual Property Office,29/12/2014,Travel and subsistence Overseas,Trade Marks Directorate,HRG UK,426251729,305.66,Not applicable,
Department for Business Innovation and Skills,Intellectual Property Office,04/12/2014,Travel and subsistence Overseas,International Policy Directorate,Personal expenses name witheld,ER127057,309.31,Not applicable,
Department for Business Innovation and Skills,Intellectual Property Office,29/12/2014,Travel and subsistence Overseas,Copyright and IP Enforcement Directorate,HRG UK,426493759,325.53,Not applicable,
Department for Business Innovation and Skills,Intellectual Property Office,08/12/2014,Travel and subsistence Overseas,Central Support,Personal expenses name witheld,ER127629,334.87,Not applicable,
Department for Business Innovation and Skills,Intellectual Property Office,29/12/2014,Travel and subsistence Overseas,Innovation Directorate,HRG UK,426464586,340.04,Not applicable,
Department for Business Innovation and Skills,Intellectual Property Office,08/12/2014,Travel and subsistence Overseas,Copyright and IP Enforcement Directorate,Personal expenses name witheld,ER127630,343.59,Not applicable,
Department for Business Innovation and Skills,Intellectual Property Office,29/12/2014,Travel and subsistence Overseas,Patents Directorate,HRG UK,426516068,344.98,Not applicable,
Department for Business Innovation and Skills,Intellectual Property Office,02/12/2014,Travel and subsistence Overseas,Trade Marks Directorate,AK Carboni,52633,348.46,Not applicable,
Department for Business Innovation and Skills,Intellectual Property Office,29/12/2014,Travel and subsistence Overseas,Copyright and IP Enforcement Directorate,HRG UK,426549415,360.06,Not applicable,
Department for Business Innovation and Skills,Intellectual Property Office,02/12/2014,Travel and subsistence Overseas,Patents Directorate,Personal expenses name witheld,ER127278,373.63,Not applicable,
Department for Business Innovation and Skills,Intellectual Property Office,29/12/2014,Travel and subsistence Overseas,Copyright and IP Enforcement Directorate,HRG UK,426315290,378.25,Not applicable,
Department for Business Innovation and Skills,Intellectual Property Office,19/12/2014,Travel and subsistence Overseas,International Policy Directorate,Personal expenses name witheld,ER126039,383.91,Not applicable,
Department for Business Innovation and Skills,Intellectual Property Office,10/12/2014,Travel and subsistence Overseas,International Policy Directorate,Personal expenses name witheld,ER127632,391.86,Not applicable,
Department for Business Innovation and Skills,Intellectual Property Office,19/12/2014,Travel and subsistence Overseas,Copyright and IP Enforcement Directorate,Personal expenses name witheld,ER127765,405.35,Not applicable,
Department for Business Innovation and Skills,Intellectual Property Office,05/12/2014,Travel and subsistence Overseas,International Policy Directorate,Personal expenses name witheld,ER127463,418.12,Not applicable,
Department for Business Innovation and Skills,Intellectual Property Office,29/12/2014,Travel and subsistence Overseas,Copyright and IP Enforcement Directorate,HRG UK,426269313,419.15,Not applicable,
Department for Business Innovation and Skills,Intellectual Property Office,09/12/2014,Travel and subsistence Overseas,Copyright and IP Enforcement Directorate,Personal expenses name witheld,ER127709,454.62,Not applicable,
Department for Business Innovation and Skills,Intellectual Property Office,22/12/2014,Travel and subsistence Overseas,Trade Marks Directorate,Personal expenses name witheld,ER128191,455.07,Not applicable,
Department for Business Innovation and Skills,Intellectual Property Office,29/12/2014,Travel and subsistence Overseas,Central Support,HRG UK,426469162,459.80,Not applicable,
Department for Business Innovation and Skills,Intellectual Property Office,03/12/2014,Travel and subsistence Overseas,Trade Marks Directorate,Personal expenses name witheld,ER126999,464.65,Not applicable,
Department for Business Innovation and Skills,Intellectual Property Office,29/12/2014,Travel and subsistence Overseas,Patents Directorate,HRG UK,426425365,474.74,Not applicable,
Department for Business Innovation and Skills,Intellectual Property Office,29/12/2014,Travel and subsistence Overseas,Finance Directorate,HRG UK,426285466,478.83,Not applicable,
Department for Business Innovation and Skills,Intellectual Property Office,16/12/2014,Travel and subsistence Overseas,International Policy Directorate,Personal expenses name witheld,ER127298,479.15,Not applicable,
Department for Business Innovation and Skills,Intellectual Property Office,18/12/2014,Travel and subsistence Overseas,International Policy Directorate,Personal expenses name witheld,ER127989,485.75,Not applicable,
Department for Business Innovation and Skills,Intellectual Property Office,10/12/2014,Travel and subsistence Overseas,Patents Directorate,Personal expenses name witheld,ER127714,507.87,Not applicable,
Department for Business Innovation and Skills,Intellectual Property Office,15/12/2014,Travel and subsistence Overseas,Trade Marks Directorate,Personal expenses name witheld,ER127728,510.22,Not applicable,
Department for Business Innovation and Skills,Intellectual Property Office,29/12/2014,Travel and subsistence Overseas,International Policy Directorate,HRG UK,426529280,511.49,Not applicable,
Department for Business Innovation and Skills,Intellectual Property Office,17/12/2014,Travel and subsistence Overseas,Patents Directorate,Personal expenses name witheld,ER127792,512.86,Not applicable,
Department for Business Innovation and Skills,Intellectual Property Office,29/12/2014,Travel and subsistence Overseas,Copyright and IP Enforcement Directorate,HRG UK,426314035,513.96,Not applicable,
Department for Business Innovation and Skills,Intellectual Property Office,16/12/2014,Travel and subsistence Overseas,Patents Directorate,Personal expenses name witheld,ER128048,524.05,Not applicable,
Department for Business Innovation and Skills,Intellectual Property Office,16/12/2014,Travel and subsistence Overseas,Patents Directorate,Personal expenses name witheld,ER128007,561.85,Not applicable,
Department for Business Innovation and Skills,Intellectual Property Office,29/12/2014,Travel and subsistence Overseas,Patents Directorate,HRG UK,426593428,563.70,Not applicable,
Department for Business Innovation and Skills,Intellectual Property Office,31/12/2014,Travel and subsistence Overseas,Copyright and IP Enforcement Directorate,Personal expenses name witheld,ER128269,658.74,Not applicable,
Department for Business Innovation and Skills,Intellectual Property Office,10/12/2014,Travel and subsistence Overseas,Business Support Directorate,Personal expenses name witheld,ER127791,719.82,Not applicable,
Department for Business Innovation and Skills,Intellectual Property Office,16/12/2014,Travel and subsistence Overseas,Copyright and IP Enforcement Directorate,Personal expenses name witheld,ER128052,767.84,Not applicable,
Department for Business Innovation and Skills,Intellectual Property Office,05/12/2014,Travel and subsistence Overseas,International Policy Directorate,Personal expenses name witheld,ER127525,781.28,Not applicable,
Department for Business Innovation and Skills,Intellectual Property Office,05/12/2014,Travel and subsistence Overseas,International Policy Directorate,Personal expenses name witheld,ER127564,824.17,Not applicable,
Department for Business Innovation and Skills,Intellectual Property Office,08/12/2014,Travel and subsistence Overseas,Central Support,Personal expenses name witheld,ER127582,857.30,Not applicable,
Department for Business Innovation and Skills,Intellectual Property Office,23/12/2014,Travel and subsistence Overseas,Innovation Directorate,Personal expenses name witheld,ER128237,1007.69,Not applicable,
Department for Business Innovation and Skills,Intellectual Property Office,12/12/2014,Travel and subsistence Overseas,Copyright and IP Enforcement Directorate,Personal expenses name witheld,ER127945,1021.41,Not applicable,
Department for Business Innovation and Skills,Intellectual Property Office,18/12/2014,Travel and subsistence Overseas,Copyright and IP Enforcement Directorate,Personal expenses name witheld,ER127664,1158.62,Not applicable,
Department for Business Innovation and Skills,Intellectual Property Office,24/12/2014,Travel and subsistence Overseas,Copyright and IP Enforcement Directorate,Personal expenses name witheld,ER128190,1412.61,Not applicable,
Department for Business Innovation and Skills,Intellectual Property Office,22/12/2014,Travel and subsistence Overseas,Copyright and IP Enforcement Directorate,Personal expenses name witheld,ER112642,1844.65,Not applicable,
Department for Business Innovation and Skills,Intellectual Property Office,03/12/2014,Travel and subsistence Overseas,Innovation Directorate,Personal expenses name witheld,ER127421,2139.86,Not applicable,
Department for Business Innovation and Skills,Intellectual Property Office,29/12/2014,Travel and subsistence Overseas,International Policy Directorate,HRG UK,426583859,2703.77,Not applicable,
Department for Business Innovation and Skills,Intellectual Property Office,29/12/2014,Travel and subsistence Overseas,International Policy Directorate,HRG UK,426304690,2744.07,Not applicable,
Department for Business Innovation and Skills,Intellectual Property Office,08/12/2014,Accommodation charges,"People, Property and Services Directorate",First Investments Ltd,66773,803.69,Not applicable,
Department for Business Innovation and Skills,Intellectual Property Office,08/12/2014,Accommodation charges,"People, Property and Services Directorate",First Investments Ltd,66772,21000.00,Not applicable,
Department for Business Innovation and Skills,Intellectual Property Office,12/12/2014,Accommodation charges,"People, Property and Services Directorate",Caerphilly County Borough Council,510317691-2014/15,28143.50,Not applicable,
Department for Business Innovation and Skills,Intellectual Property Office,03/12/2014,Security Guards,"People, Property and Services Directorate",Mitie Facilities Services Ltd,100-90860157,1878.19,Not applicable,
Department for Business Innovation and Skills,Intellectual Property Office,03/12/2014,Security Guards,"People, Property and Services Directorate",Mitie Facilities Services Ltd,100-90837564,1878.19,Not applicable,
Department for Business Innovation and Skills,Intellectual Property Office,10/12/2014,Office Cleaning,"People, Property and Services Directorate",Wastesavers Ltd,11768,110.24,Not applicable,
Department for Business Innovation and Skills,Intellectual Property Office,09/12/2014,Office Cleaning,"People, Property and Services Directorate",Thomas Waste Management Ltd,124092,255.00,Not applicable,
Department for Business Innovation and Skills,Intellectual Property Office,15/12/2014,Office Cleaning,"People, Property and Services Directorate",Thomas Waste Management Ltd,123002,255.00,Not applicable,
Department for Business Innovation and Skills,Intellectual Property Office,16/12/2014,Office Cleaning,"People, Property and Services Directorate",Thomas Waste Management Ltd,124229,255.00,Not applicable,
Department for Business Innovation and Skills,Intellectual Property Office,12/12/2014,Office Cleaning,"People, Property and Services Directorate",Initial Facilities Data Centre Cleaning & IT Hygiene,423-05279679,3360.00,Not applicable,
Department for Business Innovation and Skills,Intellectual Property Office,23/12/2014,Furniture & Fittings,"People, Property and Services Directorate",Senator International Ltd,S01211542,46.32,Not applicable,
Department for Business Innovation and Skills,Intellectual Property Office,23/12/2014,Furniture & Fittings,"People, Property and Services Directorate",Senator International Ltd,S01211541,169.22,Not applicable,
Department for Business Innovation and Skills,Intellectual Property Office,02/12/2014,Furniture & Fittings,"People, Property and Services Directorate",Healthy Workstations Ltd,26044,685.91,Not applicable,
Department for Business Innovation and Skills,Intellectual Property Office,02/12/2014,Furniture & Fittings,"People, Property and Services Directorate",Healthy Workstations Ltd,26045,685.91,Not applicable,
Department for Business Innovation and Skills,Intellectual Property Office,11/12/2014,Furniture & Fittings,"People, Property and Services Directorate",Senator International Ltd,S01210112,848.90,Not applicable,
Department for Business Innovation and Skills,Intellectual Property Office,08/12/2014,Furniture & Fittings,"People, Property and Services Directorate",St John Cymru-Wales,OP-I053916,1140.00,Not applicable,
Department for Business Innovation and Skills,Intellectual Property Office,19/12/2014,Furniture & Fittings,"People, Property and Services Directorate",Senator International Ltd,S01211537,1245.07,Not applicable,
Department for Business Innovation and Skills,Intellectual Property Office,19/12/2014,Fuel &Utilities,"People, Property and Services Directorate",Corona Energy,9707947,-5903.09,Not applicable,
Department for Business Innovation and Skills,Intellectual Property Office,19/12/2014,Fuel &Utilities,"People, Property and Services Directorate",Corona Energy,9707442,-3471.60,Not applicable,
Department for Business Innovation and Skills,Intellectual Property Office,19/12/2014,Fuel &Utilities,"People, Property and Services Directorate",Corona Energy,20105665-09735657,-185.52,Not applicable,
Department for Business Innovation and Skills,Intellectual Property Office,09/12/2014,Fuel &Utilities,"People, Property and Services Directorate",EDF Energy 1 Ltd,17647074-0052,1526.59,Not applicable,
Department for Business Innovation and Skills,Intellectual Property Office,19/12/2014,Fuel &Utilities,"People, Property and Services Directorate",Corona Energy,9750697,2790.74,Not applicable,
Department for Business Innovation and Skills,Intellectual Property Office,19/12/2014,Fuel &Utilities,"People, Property and Services Directorate",Corona Energy,9686750,3010.76,Not applicable,
Department for Business Innovation and Skills,Intellectual Property Office,19/12/2014,Fuel &Utilities,"People, Property and Services Directorate",Corona Energy,9750695,3992.35,Not applicable,
Department for Business Innovation and Skills,Intellectual Property Office,08/12/2014,Fuel &Utilities,"People, Property and Services Directorate",EDF Energy 1 Ltd,11555683-0148,30697.67,Not applicable,
Department for Business Innovation and Skills,Intellectual Property Office,09/12/2014,Minor Buiding Works &Maintenance,IMPROVE Project,Applied Products,514488,150.00,Not applicable,
Department for Business Innovation and Skills,Intellectual Property Office,10/12/2014,Minor Buiding Works &Maintenance,IMPROVE Project,Steve Morgan Associates,5904-1144955,200.00,Not applicable,
Department for Business Innovation and Skills,Intellectual Property Office,02/12/2014,Minor Buiding Works &Maintenance,"People, Property and Services Directorate",HFX Ltd,24955,1431.43,Not applicable,
Department for Business Innovation and Skills,Intellectual Property Office,10/12/2014,Minor Buiding Works &Maintenance,"People, Property and Services Directorate",GVA Grimley,7025451,1500.00,Not applicable,
Department for Business Innovation and Skills,Intellectual Property Office,19/12/2014,Minor Buiding Works &Maintenance,"People, Property and Services Directorate",FM Valorem Facilities Management Ltd,PATENT-044,7112.81,Not applicable,
Department for Business Innovation and Skills,Intellectual Property Office,10/12/2014,Minor Buiding Works &Maintenance,"People, Property and Services Directorate",GVA Grimley,7025451,20404.75,Not applicable,
Department for Business Innovation and Skills,Intellectual Property Office,12/12/2014,Minor Buiding Works &Maintenance,IMPROVE Project,Styles & Wood Ltd,CSI0001730,146000.28,Not applicable,
Department for Business Innovation and Skills,Intellectual Property Office,16/12/2014,Postage,"People, Property and Services Directorate",Royal Mail,1109022877,118.35,Not applicable,
Department for Business Innovation and Skills,Intellectual Property Office,16/12/2014,Postage,"People, Property and Services Directorate",Royal Mail,1109020688,150.00,Not applicable,
Department for Business Innovation and Skills,Intellectual Property Office,31/12/2014,Postage,"People, Property and Services Directorate",Parcelforce Worldwide,9048788530,826.57,Not applicable,
Department for Business Innovation and Skills,Intellectual Property Office,31/12/2014,Postage,"People, Property and Services Directorate",Royal Mail,9048823083,1785.27,Not applicable,
Department for Business Innovation and Skills,Intellectual Property Office,16/12/2014,Postage,"People, Property and Services Directorate",Royal Mail,9048702471,2011.03,Not applicable,
Department for Business Innovation and Skills,Intellectual Property Office,18/12/2014,Postage,"People, Property and Services Directorate",Neopost Ltd,N1207751-17DEC14,10000.00,Not applicable,
Department for Business Innovation and Skills,Intellectual Property Office,16/12/2014,Courier service,"People, Property and Services Directorate",Rico Logistics Ltd,716464,25.42,Not applicable,
Department for Business Innovation and Skills,Intellectual Property Office,02/12/2014,Courier service,Innovation Directorate,Rico Logistics Ltd,713664,27.62,Not applicable,
Department for Business Innovation and Skills,Intellectual Property Office,02/12/2014,Courier service,Copyright and IP Enforcement Directorate,Rico Logistics Ltd,713664,50.00,Not applicable,
Department for Business Innovation and Skills,Intellectual Property Office,01/12/2014,Courier service,Business Support Directorate,Rico Logistics Ltd,712279,185.74,Not applicable,
Department for Business Innovation and Skills,Intellectual Property Office,01/12/2014,Courier service,Innovation Directorate,Rico Logistics Ltd,712279,185.74,Not applicable,
Department for Business Innovation and Skills,Intellectual Property Office,16/12/2014,Courier service,"People, Property and Services Directorate",DHL International (UK) Ltd,NPR8360389,5869.82,Not applicable,
Department for Business Innovation and Skills,Intellectual Property Office,09/12/2014,Van Delivery Service,"People, Property and Services Directorate",Allstar Business Solutions Ltd,E2003903103,61.29,Not applicable,
Department for Business Innovation and Skills,Intellectual Property Office,23/12/2014,Van Delivery Service,"People, Property and Services Directorate",Days Rental,1516943,210.00,Not applicable,
Department for Business Innovation and Skills,Intellectual Property Office,09/12/2014,Van Delivery Service,"People, Property and Services Directorate",CitySprint UK Ltd,1153926,1973.00,Not applicable,
Department for Business Innovation and Skills,Intellectual Property Office,08/12/2014,Telephone Rentals and Call Charges,Business Support Directorate,Vodafone Corporate Ltd,13256683,1.61,Not applicable,
Department for Business Innovation and Skills,Intellectual Property Office,12/12/2014,Telephone Rentals and Call Charges,Business Support Directorate,O2 UK Ltd,68890086-01DEC14,21.06,Not applicable,
Department for Business Innovation and Skills,Intellectual Property Office,09/12/2014,Telephone Rentals and Call Charges,Business Support Directorate,Virgin Media,439936401001-02DEC14,39.28,Not applicable,
Department for Business Innovation and Skills,Intellectual Property Office,18/12/2014,Telephone Rentals and Call Charges,Business Support Directorate,Virgin Media,441626201001-09DEC14,40.94,Not applicable,
Department for Business Innovation and Skills,Intellectual Property Office,31/12/2014,Telephone Rentals and Call Charges,Business Support Directorate,Virgin Media,441112301001-23DEC14,46.80,Not applicable,
Department for Business Innovation and Skills,Intellectual Property Office,31/12/2014,Telephone Rentals and Call Charges,Business Support Directorate,Virgin Media,441066601001-12NOV14,46.85,Not applicable,
Department for Business Innovation and Skills,Intellectual Property Office,09/12/2014,Telephone Rentals and Call Charges,Business Support Directorate,Virgin Media,440030601001-02DEC14,46.94,Not applicable,
Department for Business Innovation and Skills,Intellectual Property Office,02/12/2014,Telephone Rentals and Call Charges,Business Support Directorate,Virgin Media,288670201001-26NOV14,47.32,Not applicable,
Department for Business Innovation and Skills,Intellectual Property Office,23/12/2014,Telephone Rentals and Call Charges,Business Support Directorate,Virgin Media,441066601001-11DEC14,47.39,Not applicable,
Department for Business Innovation and Skills,Intellectual Property Office,18/12/2014,Telephone Rentals and Call Charges,Business Support Directorate,Virgin Media,441626301001-09DEC14,47.50,Not applicable,
Department for Business Innovation and Skills,Intellectual Property Office,31/12/2014,Telephone Rentals and Call Charges,Business Support Directorate,Virgin Media,440030801001-23DEC14,47.84,Not applicable,
Department for Business Innovation and Skills,Intellectual Property Office,05/12/2014,Telephone Rentals and Call Charges,Business Support Directorate,Virgin Media,088813901001-28NOV14,47.98,Not applicable,
Department for Business Innovation and Skills,Intellectual Property Office,18/12/2014,Telephone Rentals and Call Charges,Business Support Directorate,Virgin Media,441057501001-09DEC14,48.55,Not applicable,
Department for Business Innovation and Skills,Intellectual Property Office,02/12/2014,Telephone Rentals and Call Charges,Business Support Directorate,Virgin Media,442013201001-24NOV14,49.62,Not applicable,
Department for Business Innovation and Skills,Intellectual Property Office,31/12/2014,Telephone Rentals and Call Charges,Business Support Directorate,Virgin Media,440037101001-23DEC14,49.94,Not applicable,
Department for Business Innovation and Skills,Intellectual Property Office,31/12/2014,Telephone Rentals and Call Charges,Business Support Directorate,Virgin Media,442013201001-23DEC14,51.14,Not applicable,
Department for Business Innovation and Skills,Intellectual Property Office,31/12/2014,Telephone Rentals and Call Charges,Business Support Directorate,Virgin Media,416860501001-23DEC14,53.05,Not applicable,
Department for Business Innovation and Skills,Intellectual Property Office,31/12/2014,Telephone Rentals and Call Charges,Business Support Directorate,Virgin Media,210939001001-18DEC14,53.74,Not applicable,
Department for Business Innovation and Skills,Intellectual Property Office,03/12/2014,Telephone Rentals and Call Charges,Business Support Directorate,Virgin Media,416860501001-24NOV14,54.06,Not applicable,
Department for Business Innovation and Skills,Intellectual Property Office,05/12/2014,Telephone Rentals and Call Charges,Business Support Directorate,Virgin Media,442061801001-02DEC14,58.42,Not applicable,
Department for Business Innovation and Skills,Intellectual Property Office,09/12/2014,Telephone Rentals and Call Charges,Business Support Directorate,Virgin Media,441893301001-02DEC14,60.02,Not applicable,
Department for Business Innovation and Skills,Intellectual Property Office,31/12/2014,Telephone Rentals and Call Charges,Business Support Directorate,Virgin Media,441885101001-12NOV14,60.10,Not applicable,
Department for Business Innovation and Skills,Intellectual Property Office,11/12/2014,Telephone Rentals and Call Charges,Business Support Directorate,Virgin Media,442137701001-09DEC14,60.12,Not applicable,
Department for Business Innovation and Skills,Intellectual Property Office,23/12/2014,Telephone Rentals and Call Charges,Business Support Directorate,Virgin Media,441885101001-11DEC14,60.12,Not applicable,
Department for Business Innovation and Skills,Intellectual Property Office,23/12/2014,Telephone Rentals and Call Charges,Business Support Directorate,Virgin Media,441885201001-11DEC14,60.19,Not applicable,
Department for Business Innovation and Skills,Intellectual Property Office,31/12/2014,Telephone Rentals and Call Charges,Business Support Directorate,Virgin Media,441976801001-15DEC14,60.96,Not applicable,
Department for Business Innovation and Skills,Intellectual Property Office,31/12/2014,Telephone Rentals and Call Charges,Business Support Directorate,Virgin Media,441885201001-12NOV14,61.20,Not applicable,
Department for Business Innovation and Skills,Intellectual Property Office,18/12/2014,Telephone Rentals and Call Charges,Business Support Directorate,Virgin Media,441932801001-09DEC14,62.83,Not applicable,
Department for Business Innovation and Skills,Intellectual Property Office,03/12/2014,Telephone Rentals and Call Charges,Business Support Directorate,Virgin Media,442217601001-26NOV14,66.43,Not applicable,
